Workbook

Sheet Read Me
A1: This workbook was created as a companion to Module 3 of EPA's Integrated Planning Permitting Authority Toolkit to help permitting authorities facilitate an integrated plan review as part of the permit renewal process, determine if the plan contains all of the information necessary to inform the permit development, and align the integrated plan outcomes with permit requirements, permit issuance, and compliance schedules. Use the tab and arrow keys to navigate each page. Messages are provided in most cells to notify the user how to use each cell and form.
B2: Integrated Planning in Action Permitting Authority Toolkit: Module 3 Workbook
B3: Overview | C3: This workbook was created as a companion to Module 3 of EPA's Integrated Planning Permitting Authority Toolkit to help permitting authorities facilitate an integrated plan review as part of the permit renewal process, determine if the plan contains all of the information necessary to inform the permit development, and align the integrated plan outcomes with permit requirements, permit issuance, and compliance schedules.
B4: Sheet | C4: Description
B5: 0. Plan Information | C5: Enter basic information about the permittee, integrated plan submittal, and the relevant permits and enforcement actions.
B6: 1. Administrative Timeline | C6: Displays plan review timeline against permit expiration dates to visualize the integrated plan review window and help you identify key dates.
B7: 2. Activity Log | C7: Table to track different aspects of permitting authority review and document any follow up with the permittee.
B8: 3. Plan Review | C8: Guides you through a completeness review of the integrated plan based on the six elements of the Integrated Planning Framework. Includes space for you to take notes on what is included in or missing from the plan.
B9: 4. Plan Completeness Summary | C9: Output from the plan review sheet highlighting which elements are missing information. Includes space to document any follow-up communications with the permittee.
B10: 5. Adequacy Summary | C10: Allows you to compare the original permit requirements with the proposed outcomes of the integrated plan. Guides you through documenting the water quality drivers and requirements as well as and non-CWA requirements and drivers to elaborate on the justification for an integrated approach.
B11: 6. Evaluation Summary | C11: Output sheet summarizing the basic plan information, plan completeness, and adequacy from previous tabs. Includes space to document the final state decision regarding a permit revision and/or compliance schedule.
B12: Key
B13: Tool inputs are indicated in purple
B14: Satisfactory answers are indicated in green
B15: Unsatisfactory answers are indicated in red
B16: Tool outputs are indicated in orange and should not be edited
B17: General notes and answers are indicated in grey

Sheet 0. Plan Information
B1: Instructions: Enter information in purple tool input cells. The number of permit and enforcement actions you indicate will determine how many sections are shown. Enter the number of permit or enforcement requirements being addressed in the plan which will make tables available to the right where you can input the compliance requirements being addressed in the plan and the deadline for each requirement.
B3: Basic Plan Information
B4: Permittee Name
B5: Plan Name
B6: Integrated Plan Information | M6: WWTF | N6: 2 | O6: Yes | P6: 1 | Q6: 1
B7: Has the permittee submitted an integrated plan for review and incorporation into one or more permits? | M7: CSO | N7: 3 | O7: No | P7: 2 | Q7: 2
C8: When did you begin your review? (MM/DD/YYYY) | M8: MS4 | N8: 4 | P8: 3 | Q8: 3
C9: When do you expect the permittee to submit the integrated plan? (MM/DD/YYYY) | M9: WWTF and CSO | N9: 5 | P9: 4
B10: How many months do you expect that it will take to review the integrated plan and determine if the plan's outcomes should be incorporated into facility permits? | M10: WWTF and MS4 | N10: 6 | P10: 5
B11: Permit Information | F11: Permit Requirements | M11: WWTF, CSO, MS4
B12: How many of the facility's permits are being addressed in the integrated plan? | F12: Req. | G12: Compliance Requirement | H12: Compliance Date
C14: Facility Name | F14: 1
C15: Permit Number | F15: 2
B16: Permit 1 | C16: Discharges Addressed | F16: 3
C17: How many permit requirements are addressed in the Integrated Plan? | F17: 4
F18: 5
C20: Facility Name | F20: 1
C21: Permit Number | F21: 2
B22: Permit 2 | C22: Discharges Addressed | F22: 3
C23: How many permit requirements are addressed in the Integrated Plan? | F23: 4
F24: 5
A26: =IF($D$12<3,0,1) -> 0 | C26: Facility Name | F26: 1
A27: =IF($D$12<3,0,1) -> 0 | C27: Permit Number | F27: 2
A28: 0 | B28: Permit 3 | C28: Discharges Addressed | F28: 3
A29: 0 | C29: How many permit requirements are addressed in the Integrated Plan? | F29: 4
A30: 0 | F30: 5
A31: 0
A32: =IF($D$12<4,0,1) -> 0 | C32: Facility Name | F32: 1
A33: =IF($D$12<4,0,1) -> 0 | C33: Permit Number | F33: 2
A34: 0 | B34: Permit 4 | C34: Discharges Addressed | F34: 3
A35: 0 | C35: How many permit requirements are addressed in the Integrated Plan? | F35: 4
A36: 0 | F36: 5
A37: 0
A38: =IF($D$12<5,0,1) -> 0 | C38: Facility Name | F38: 1
A39: =IF($D$12<5,0,1) -> 0 | C39: Permit Number | F39: 2
A40: 0 | B40: Permit 5 | C40: Discharges Addressed | F40: 3
A41: 0 | C41: How many permit requirements are addressed in the Integrated Plan? | F41: 4
A42: 0 | F42: 5
A43: 0
A44: =IF($D$12<6,0,1) -> 0 | C44: Facility Name | F44: 1
A45: =IF($D$12<6,0,1) -> 0 | C45: Permit Number | F45: 2
A46: 0 | B46: Permit 6 | C46: Discharges Addressed | F46: 3
A47: 0 | C47: How many permit requirements are addressed in the Integrated Plan? | F47: 4
A48: 0 | F48: 5
A49: 0
B50: Enforcement Information | F50: Enforcement Requirements
B51: How many enforcement mechanisms are included in the Integrated Plan? | F51: Req. | G51: Compliance Requirement | H51: Compliance Date
C53: Enforcement Mechanism | F53: 1
B54: Enforcement Mechanism 1 | F54: 2
C55: How many compliance requirements are included in this enforcement mechanism? | F55: 3
F56: 4
F57: 5
A59: =IF($D$51>1,1,0) -> 0 | C59: Enforcement Mechanism | F59: 1
A60: =IF($D$51>1,1,0) -> 0 | B60: Enforcement Mechanism 2 | F60: 2
A61: 0 | C61: How many compliance requirements are included in this enforcement mechanism? | F61: 3
A62: 0 | F62: 4
A63: 0 | F63: 5
A64: 0
A65: =IF($D$51>2,1,0) -> 0 | C65: Enforcement Mechanism | F65: 1
A66: =IF($D$51>2,1,0) -> 0 | B66: Enforcement Mechanism 3 | F66: 2
A67: 0 | C67: How many compliance requirements are included in this enforcement mechanism? | F67: 3
A68: 0 | F68: 4
A69: 0 | F69: 5
A70: 0

Sheet 1. Adminstrative Timeline
B1: Instructions: Enter the expiration date for each permit generated below from the Plan Information tab. The timeframe available to review the integrated plan without having to extend and/or reopen a permit will be generated in yellow.
I2: 1 | J2: =I2+1 -> 2 | K2: =J2+1 -> 3 | L2: 4 | M2: 5 | N2: 6 | O2: 7 | P2: 8 | Q2: 9 | R2: 10 | S2: 11 | T2: 12 | U2: =T2+1 -> 13 | V2: =U2+1 -> 14 | W2: =V2+1 -> 15 | X2: =W2+1 -> 16 | Y2: =X2+1 -> 17 | Z2: =Y2+1 -> 18 | AA2: =Z2+1 -> 19 | AB2: =AA2+1 -> 20 | AC2: =AB2+1 -> 21 | AD2: =AC2+1 -> 22 | AE2: =AD2+1 -> 23 | AF2: =AE2+1 -> 24 | AG2: =AF2+1 -> 25 | AH2: =AG2+1 -> 26 | AI2: =AH2+1 -> 27 | AJ2: =AI2+1 -> 28 | AK2: =AJ2+1 -> 29 | AL2: =AK2+1 -> 30 | AM2: =AL2+1 -> 31 | AN2: =AM2+1 -> 32 | AO2: =AN2+1 -> 33 | AP2: =AO2+1 -> 34 | AQ2: =AP2+1 -> 35 | AR2: =AQ2+1 -> 36 | AS2: =AR2+1 -> 37 | AT2: =AS2+1 -> 38 | AU2: =AT2+1 -> 39 | AV2: =AU2+1 -> 40 | AW2: =AV2+1 -> 41 | AX2: =AW2+1 -> 42 | AY2: =AX2+1 -> 43 | AZ2: =AY2+1 -> 44 | BA2: =AZ2+1 -> 45 | BB2: =BA2+1 -> 46 | BC2: =BB2+1 -> 47 | BD2: =BC2+1 -> 48 | BE2: =BD2+1 -> 49 | BF2: =BE2+1 -> 50 | BG2: =BF2+1 -> 51 | BH2: =BG2+1 -> 52 | BI2: =BH2+1 -> 53 | BJ2: =BI2+1 -> 54 | BK2: =BJ2+1 -> 55 | BL2: =BK2+1 -> 56 | BM2: =BL2+1 -> 57 | BN2: =BM2+1 -> 58 | BO2: =BN2+1 -> 59 | BP2: =BO2+1 -> 60 | BQ2: =BP2+1 -> 61 | BR2: =BQ2+1 -> 62 | BS2: =BR2+1 -> 63 | BT2: =BS2+1 -> 64 | BU2: =BT2+1 -> 65 | BV2: =BU2+1 -> 66 | BW2: =BV2+1 -> 67 | BX2: =BW2+1 -> 68 | BY2: =BX2+1 -> 69 | BZ2: =BY2+1 -> 70 | CA2: =BZ2+1 -> 71 | CB2: =CA2+1 -> 72 | CC2: =CB2+1 -> 73 | CD2: =CC2+1 -> 74 | CE2: =CD2+1 -> 75 | CF2: =CE2+1 -> 76 | CG2: =CF2+1 -> 77 | CH2: =CG2+1 -> 78 | CI2: =CH2+1 -> 79 | CJ2: =CI2+1 -> 80 | CK2: =CJ2+1 -> 81 | CL2: =CK2+1 -> 82 | CM2: =CL2+1 -> 83 | CN2: =CM2+1 -> 84 | CO2: =CN2+1 -> 85 | CP2: =CO2+1 -> 86 | CQ2: =CP2+1 -> 87 | CR2: =CQ2+1 -> 88 | CS2: =CR2+1 -> 89 | CT2: =CS2+1 -> 90 | CU2: =CT2+1 -> 91 | CV2: =CU2+1 -> 92 | CW2: =CV2+1 -> 93 | CX2: =CW2+1 -> 94 | CY2: =CX2+1 -> 95 | CZ2: =CY2+1 -> 96 | DA2: =CZ2+1 -> 97 | DB2: =DA2+1 -> 98 | DC2: =DB2+1 -> 99 | DD2: =DC2+1 -> 100 | DE2: =DD2+1 -> 101 | DF2: =DE2+1 -> 102 | DG2: =DF2+1 -> 103 | DH2: =DG2+1 -> 104 | DI2: =DH2+1 -> 105 | DJ2: =DI2+1 -> 106 | DK2: =DJ2+1 -> 107 | DL2: =DK2+1 -> 108 | DM2: =DL2+1 -> 109 | DN2: =DM2+1 -> 110 | DO2: =DN2+1 -> 111 | DP2: =DO2+1 -> 112 | DQ2: =DP2+1 -> 113 | DR2: =DQ2+1 -> 114 | DS2: =DR2+1 -> 115 | DT2: =DS2+1 -> 116 | DU2: =DT2+1 -> 117 | DV2: =DU2+1 -> 118 | DW2: =DV2+1 -> 119 | DX2: =DW2+1 -> 120
B3: DO NOT DELETE ROW | C3: Plan Review Start Date | D3: =IF(ISBLANK('0. Plan Information'!$D$8),'0. Plan Information'!$D$9,'0. Plan Information'!$D$8) -> 00:00:00
B4: DO NOT DELETE ROW | C4: Plan Review End Date | D4: =EDATE(D3,'0. Plan Information'!$D$10) -> 00:00:00
B5: DO NOT DELETE ROW | C5: Timeline Start Date | D5: =DATE(IF(ISBLANK(D12),YEAR(D3),YEAR(MIN(D3,D12:D17))),1,1) -> 1900-01-01 | I5: 1 | J5: 2 | K5: 3 | L5: 4 | M5: 5 | N5: 6 | O5: 7 | P5: 8 | Q5: 9 | R5: 10 | S5: 11 | T5: 12 | U5: 1 | V5: 2 | W5: 3 | X5: 4 | Y5: 5 | Z5: 6 | AA5: 7 | AB5: 8 | AC5: 9 | AD5: 10 | AE5: 11 | AF5: 12 | AG5: 1 | AH5: 2 | AI5: 3 | AJ5: 4 | AK5: 5 | AL5: 6 | AM5: 7 | AN5: 8 | AO5: 9 | AP5: 10 | AQ5: 11 | AR5: 12 | AS5: 1 | AT5: 2 | AU5: 3 | AV5: 4 | AW5: 5 | AX5: 6 | AY5: 7 | AZ5: 8 | BA5: 9 | BB5: 10 | BC5: 11 | BD5: 12 | BE5: 1 | BF5: 2 | BG5: 3 | BH5: 4 | BI5: 5 | BJ5: 6 | BK5: 7 | BL5: 8 | BM5: 9 | BN5: 10 | BO5: 11 | BP5: 12 | BQ5: 1 | BR5: 2 | BS5: 3 | BT5: 4 | BU5: 5 | BV5: 6 | BW5: 7 | BX5: 8 | BY5: 9 | BZ5: 10 | CA5: 11 | CB5: 12 | CC5: 1 | CD5: 2 | CE5: 3 | CF5: 4 | CG5: 5 | CH5: 6 | CI5: 7 | CJ5: 8 | CK5: 9 | CL5: 10 | CM5: 11 | CN5: 12 | CO5: 1 | CP5: 2 | CQ5: 3 | CR5: 4 | CS5: 5 | CT5: 6 | CU5: 7 | CV5: 8 | CW5: 9 | CX5: 10 | CY5: 11 | CZ5: 12 | DA5: 1 | DB5: 2 | DC5: 3 | DD5: 4 | DE5: 5 | DF5: 6 | DG5: 7 | DH5: 8 | DI5: 9 | DJ5: 10 | DK5: 11 | DL5: 12 | DM5: 1 | DN5: 2 | DO5: 3 | DP5: 4 | DQ5: 5 | DR5: 6 | DS5: 7 | DT5: 8 | DU5: 9 | DV5: 10 | DW5: 11 | DX5: 12
B6: DO NOT DELETE ROW | C6: Timeline End Date | D6: =MAX(E12:G17,D3:D4) -> 00:00:00 | I6: =DATE(YEAR(D5),1,1) -> 1900-01-01 | J6: =IF(J5=1,DATE(YEAR(I6)+1,1,1),DATE(YEAR(I6),J5,1)) -> 1900-02-01 | K6: =IF(K5=1,DATE(YEAR(J6)+1,1,1),DATE(YEAR(J6),K5,1)) -> 1900-03-01 | L6: 1900-04-01 | M6: 1900-05-01 | N6: 1900-06-01 | O6: 1900-07-01 | P6: 1900-08-01 | Q6: 1900-09-01 | R6: 1900-10-01 | S6: 1900-11-01 | T6: 1900-12-01 | U6: 1901-01-01 | V6: 1901-02-01 | W6: 1901-03-01 | X6: 1901-04-01 | Y6: 1901-05-01 | Z6: 1901-06-01 | AA6: 1901-07-01 | AB6: 1901-08-01 | AC6: 1901-09-01 | AD6: 1901-10-01 | AE6: 1901-11-01 | AF6: 1901-12-01 | AG6: =IF(AG5=1,DATE(YEAR(AF6)+1,1,1),DATE(YEAR(AF6),AG5,1)) -> 1902-01-01 | AH6: =IF(AH5=1,DATE(YEAR(AG6)+1,1,1),DATE(YEAR(AG6),AH5,1)) -> 1902-02-01 | AI6: =IF(AI5=1,DATE(YEAR(AH6)+1,1,1),DATE(YEAR(AH6),AI5,1)) -> 1902-03-01 | AJ6: =IF(AJ5=1,DATE(YEAR(AI6)+1,1,1),DATE(YEAR(AI6),AJ5,1)) -> 1902-04-01 | AK6: =IF(AK5=1,DATE(YEAR(AJ6)+1,1,1),DATE(YEAR(AJ6),AK5,1)) -> 1902-05-01 | AL6: =IF(AL5=1,DATE(YEAR(AK6)+1,1,1),DATE(YEAR(AK6),AL5,1)) -> 1902-06-01 | AM6: =IF(AM5=1,DATE(YEAR(AL6)+1,1,1),DATE(YEAR(AL6),AM5,1)) -> 1902-07-01 | AN6: =IF(AN5=1,DATE(YEAR(AM6)+1,1,1),DATE(YEAR(AM6),AN5,1)) -> 1902-08-01 | AO6: =IF(AO5=1,DATE(YEAR(AN6)+1,1,1),DATE(YEAR(AN6),AO5,1)) -> 1902-09-01 | AP6: =IF(AP5=1,DATE(YEAR(AO6)+1,1,1),DATE(YEAR(AO6),AP5,1)) -> 1902-10-01 | AQ6: =IF(AQ5=1,DATE(YEAR(AP6)+1,1,1),DATE(YEAR(AP6),AQ5,1)) -> 1902-11-01 | AR6: =IF(AR5=1,DATE(YEAR(AQ6)+1,1,1),DATE(YEAR(AQ6),AR5,1)) -> 1902-12-01 | AS6: =IF(AS5=1,DATE(YEAR(AR6)+1,1,1),DATE(YEAR(AR6),AS5,1)) -> 1903-01-01 | AT6: =IF(AT5=1,DATE(YEAR(AS6)+1,1,1),DATE(YEAR(AS6),AT5,1)) -> 1903-02-01 | AU6: =IF(AU5=1,DATE(YEAR(AT6)+1,1,1),DATE(YEAR(AT6),AU5,1)) -> 1903-03-01 | AV6: =IF(AV5=1,DATE(YEAR(AU6)+1,1,1),DATE(YEAR(AU6),AV5,1)) -> 1903-04-01 | AW6: =IF(AW5=1,DATE(YEAR(AV6)+1,1,1),DATE(YEAR(AV6),AW5,1)) -> 1903-05-01 | AX6: =IF(AX5=1,DATE(YEAR(AW6)+1,1,1),DATE(YEAR(AW6),AX5,1)) -> 1903-06-01 | AY6: =IF(AY5=1,DATE(YEAR(AX6)+1,1,1),DATE(YEAR(AX6),AY5,1)) -> 1903-07-01 | AZ6: =IF(AZ5=1,DATE(YEAR(AY6)+1,1,1),DATE(YEAR(AY6),AZ5,1)) -> 1903-08-01 | BA6: =IF(BA5=1,DATE(YEAR(AZ6)+1,1,1),DATE(YEAR(AZ6),BA5,1)) -> 1903-09-01 | BB6: =IF(BB5=1,DATE(YEAR(BA6)+1,1,1),DATE(YEAR(BA6),BB5,1)) -> 1903-10-01 | BC6: =IF(BC5=1,DATE(YEAR(BB6)+1,1,1),DATE(YEAR(BB6),BC5,1)) -> 1903-11-01 | BD6: =IF(BD5=1,DATE(YEAR(BC6)+1,1,1),DATE(YEAR(BC6),BD5,1)) -> 1903-12-01 | BE6: =IF(BE5=1,DATE(YEAR(BD6)+1,1,1),DATE(YEAR(BD6),BE5,1)) -> 1904-01-01 | BF6: =IF(BF5=1,DATE(YEAR(BE6)+1,1,1),DATE(YEAR(BE6),BF5,1)) -> 1904-02-01 | BG6: =IF(BG5=1,DATE(YEAR(BF6)+1,1,1),DATE(YEAR(BF6),BG5,1)) -> 1904-03-01 | BH6: =IF(BH5=1,DATE(YEAR(BG6)+1,1,1),DATE(YEAR(BG6),BH5,1)) -> 1904-04-01 | BI6: =IF(BI5=1,DATE(YEAR(BH6)+1,1,1),DATE(YEAR(BH6),BI5,1)) -> 1904-05-01 | BJ6: =IF(BJ5=1,DATE(YEAR(BI6)+1,1,1),DATE(YEAR(BI6),BJ5,1)) -> 1904-06-01 | BK6: =IF(BK5=1,DATE(YEAR(BJ6)+1,1,1),DATE(YEAR(BJ6),BK5,1)) -> 1904-07-01 | BL6: =IF(BL5=1,DATE(YEAR(BK6)+1,1,1),DATE(YEAR(BK6),BL5,1)) -> 1904-08-01 | BM6: =IF(BM5=1,DATE(YEAR(BL6)+1,1,1),DATE(YEAR(BL6),BM5,1)) -> 1904-09-01 | BN6: =IF(BN5=1,DATE(YEAR(BM6)+1,1,1),DATE(YEAR(BM6),BN5,1)) -> 1904-10-01 | BO6: =IF(BO5=1,DATE(YEAR(BN6)+1,1,1),DATE(YEAR(BN6),BO5,1)) -> 1904-11-01 | BP6: =IF(BP5=1,DATE(YEAR(BO6)+1,1,1),DATE(YEAR(BO6),BP5,1)) -> 1904-12-01 | BQ6: =IF(BQ5=1,DATE(YEAR(BP6)+1,1,1),DATE(YEAR(BP6),BQ5,1)) -> 1905-01-01 | BR6: =IF(BR5=1,DATE(YEAR(BQ6)+1,1,1),DATE(YEAR(BQ6),BR5,1)) -> 1905-02-01 | BS6: =IF(BS5=1,DATE(YEAR(BR6)+1,1,1),DATE(YEAR(BR6),BS5,1)) -> 1905-03-01 | BT6: =IF(BT5=1,DATE(YEAR(BS6)+1,1,1),DATE(YEAR(BS6),BT5,1)) -> 1905-04-01 | BU6: =IF(BU5=1,DATE(YEAR(BT6)+1,1,1),DATE(YEAR(BT6),BU5,1)) -> 1905-05-01 | BV6: =IF(BV5=1,DATE(YEAR(BU6)+1,1,1),DATE(YEAR(BU6),BV5,1)) -> 1905-06-01 | BW6: =IF(BW5=1,DATE(YEAR(BV6)+1,1,1),DATE(YEAR(BV6),BW5,1)) -> 1905-07-01 | BX6: =IF(BX5=1,DATE(YEAR(BW6)+1,1,1),DATE(YEAR(BW6),BX5,1)) -> 1905-08-01 | BY6: =IF(BY5=1,DATE(YEAR(BX6)+1,1,1),DATE(YEAR(BX6),BY5,1)) -> 1905-09-01 | BZ6: =IF(BZ5=1,DATE(YEAR(BY6)+1,1,1),DATE(YEAR(BY6),BZ5,1)) -> 1905-10-01 | CA6: =IF(CA5=1,DATE(YEAR(BZ6)+1,1,1),DATE(YEAR(BZ6),CA5,1)) -> 1905-11-01 | CB6: =IF(CB5=1,DATE(YEAR(CA6)+1,1,1),DATE(YEAR(CA6),CB5,1)) -> 1905-12-01 | CC6: =IF(CC5=1,DATE(YEAR(CB6)+1,1,1),DATE(YEAR(CB6),CC5,1)) -> 1906-01-01 | CD6: =IF(CD5=1,DATE(YEAR(CC6)+1,1,1),DATE(YEAR(CC6),CD5,1)) -> 1906-02-01 | CE6: =IF(CE5=1,DATE(YEAR(CD6)+1,1,1),DATE(YEAR(CD6),CE5,1)) -> 1906-03-01 | CF6: =IF(CF5=1,DATE(YEAR(CE6)+1,1,1),DATE(YEAR(CE6),CF5,1)) -> 1906-04-01 | CG6: =IF(CG5=1,DATE(YEAR(CF6)+1,1,1),DATE(YEAR(CF6),CG5,1)) -> 1906-05-01 | CH6: =IF(CH5=1,DATE(YEAR(CG6)+1,1,1),DATE(YEAR(CG6),CH5,1)) -> 1906-06-01 | CI6: =IF(CI5=1,DATE(YEAR(CH6)+1,1,1),DATE(YEAR(CH6),CI5,1)) -> 1906-07-01 | CJ6: =IF(CJ5=1,DATE(YEAR(CI6)+1,1,1),DATE(YEAR(CI6),CJ5,1)) -> 1906-08-01 | CK6: =IF(CK5=1,DATE(YEAR(CJ6)+1,1,1),DATE(YEAR(CJ6),CK5,1)) -> 1906-09-01 | CL6: =IF(CL5=1,DATE(YEAR(CK6)+1,1,1),DATE(YEAR(CK6),CL5,1)) -> 1906-10-01 | CM6: =IF(CM5=1,DATE(YEAR(CL6)+1,1,1),DATE(YEAR(CL6),CM5,1)) -> 1906-11-01 | CN6: =IF(CN5=1,DATE(YEAR(CM6)+1,1,1),DATE(YEAR(CM6),CN5,1)) -> 1906-12-01 | CO6: =IF(CO5=1,DATE(YEAR(CN6)+1,1,1),DATE(YEAR(CN6),CO5,1)) -> 1907-01-01 | CP6: =IF(CP5=1,DATE(YEAR(CO6)+1,1,1),DATE(YEAR(CO6),CP5,1)) -> 1907-02-01 | CQ6: =IF(CQ5=1,DATE(YEAR(CP6)+1,1,1),DATE(YEAR(CP6),CQ5,1)) -> 1907-03-01 | CR6: =IF(CR5=1,DATE(YEAR(CQ6)+1,1,1),DATE(YEAR(CQ6),CR5,1)) -> 1907-04-01 | CS6: =IF(CS5=1,DATE(YEAR(CR6)+1,1,1),DATE(YEAR(CR6),CS5,1)) -> 1907-05-01 | CT6: =IF(CT5=1,DATE(YEAR(CS6)+1,1,1),DATE(YEAR(CS6),CT5,1)) -> 1907-06-01 | CU6: =IF(CU5=1,DATE(YEAR(CT6)+1,1,1),DATE(YEAR(CT6),CU5,1)) -> 1907-07-01 | CV6: =IF(CV5=1,DATE(YEAR(CU6)+1,1,1),DATE(YEAR(CU6),CV5,1)) -> 1907-08-01 | CW6: =IF(CW5=1,DATE(YEAR(CV6)+1,1,1),DATE(YEAR(CV6),CW5,1)) -> 1907-09-01 | CX6: =IF(CX5=1,DATE(YEAR(CW6)+1,1,1),DATE(YEAR(CW6),CX5,1)) -> 1907-10-01 | CY6: =IF(CY5=1,DATE(YEAR(CX6)+1,1,1),DATE(YEAR(CX6),CY5,1)) -> 1907-11-01 | CZ6: =IF(CZ5=1,DATE(YEAR(CY6)+1,1,1),DATE(YEAR(CY6),CZ5,1)) -> 1907-12-01 | DA6: =IF(DA5=1,DATE(YEAR(CZ6)+1,1,1),DATE(YEAR(CZ6),DA5,1)) -> 1908-01-01 | DB6: =IF(DB5=1,DATE(YEAR(DA6)+1,1,1),DATE(YEAR(DA6),DB5,1)) -> 1908-02-01 | DC6: =IF(DC5=1,DATE(YEAR(DB6)+1,1,1),DATE(YEAR(DB6),DC5,1)) -> 1908-03-01 | DD6: =IF(DD5=1,DATE(YEAR(DC6)+1,1,1),DATE(YEAR(DC6),DD5,1)) -> 1908-04-01 | DE6: =IF(DE5=1,DATE(YEAR(DD6)+1,1,1),DATE(YEAR(DD6),DE5,1)) -> 1908-05-01 | DF6: =IF(DF5=1,DATE(YEAR(DE6)+1,1,1),DATE(YEAR(DE6),DF5,1)) -> 1908-06-01 | DG6: =IF(DG5=1,DATE(YEAR(DF6)+1,1,1),DATE(YEAR(DF6),DG5,1)) -> 1908-07-01 | DH6: =IF(DH5=1,DATE(YEAR(DG6)+1,1,1),DATE(YEAR(DG6),DH5,1)) -> 1908-08-01 | DI6: =IF(DI5=1,DATE(YEAR(DH6)+1,1,1),DATE(YEAR(DH6),DI5,1)) -> 1908-09-01 | DJ6: =IF(DJ5=1,DATE(YEAR(DI6)+1,1,1),DATE(YEAR(DI6),DJ5,1)) -> 1908-10-01 | DK6: =IF(DK5=1,DATE(YEAR(DJ6)+1,1,1),DATE(YEAR(DJ6),DK5,1)) -> 1908-11-01 | DL6: =IF(DL5=1,DATE(YEAR(DK6)+1,1,1),DATE(YEAR(DK6),DL5,1)) -> 1908-12-01 | DM6: =IF(DM5=1,DATE(YEAR(DL6)+1,1,1),DATE(YEAR(DL6),DM5,1)) -> 1909-01-01 | DN6: =IF(DN5=1,DATE(YEAR(DM6)+1,1,1),DATE(YEAR(DM6),DN5,1)) -> 1909-02-01 | DO6: =IF(DO5=1,DATE(YEAR(DN6)+1,1,1),DATE(YEAR(DN6),DO5,1)) -> 1909-03-01 | DP6: =IF(DP5=1,DATE(YEAR(DO6)+1,1,1),DATE(YEAR(DO6),DP5,1)) -> 1909-04-01 | DQ6: =IF(DQ5=1,DATE(YEAR(DP6)+1,1,1),DATE(YEAR(DP6),DQ5,1)) -> 1909-05-01 | DR6: =IF(DR5=1,DATE(YEAR(DQ6)+1,1,1),DATE(YEAR(DQ6),DR5,1)) -> 1909-06-01 | DS6: =IF(DS5=1,DATE(YEAR(DR6)+1,1,1),DATE(YEAR(DR6),DS5,1)) -> 1909-07-01 | DT6: =IF(DT5=1,DATE(YEAR(DS6)+1,1,1),DATE(YEAR(DS6),DT5,1)) -> 1909-08-01 | DU6: =IF(DU5=1,DATE(YEAR(DT6)+1,1,1),DATE(YEAR(DT6),DU5,1)) -> 1909-09-01 | DV6: =IF(DV5=1,DATE(YEAR(DU6)+1,1,1),DATE(YEAR(DU6),DV5,1)) -> 1909-10-01 | DW6: =IF(DW5=1,DATE(YEAR(DV6)+1,1,1),DATE(YEAR(DV6),DW5,1)) -> 1909-11-01 | DX6: =IF(DX5=1,DATE(YEAR(DW6)+1,1,1),DATE(YEAR(DW6),DX5,1)) -> 1909-12-01
B7: Administrative Timeline | K7: Expiration Date
B8: For each permit below, enter the permit expiration date. If the expiration date has been administratively extended, note the new expiration date. | K8: Integrated Plan Review Window
B10: ='0. Plan Information'!$D$12 -> 0 | C10: Permit | D10: Expiration Date | E10: Single Event | F10: Window | I10: =YEAR(D5) -> 1900 | U10: =I10+1 -> 1901 | AG10: =U10+1 -> 1902 | AS10: =AG10+1 -> 1903 | BE10: =AS10+1 -> 1904 | BQ10: =BE10+1 -> 1905 | CC10: =BQ10+1 -> 1906 | CO10: =CC10+1 -> 1907 | DA10: =CO10+1 -> 1908 | DM10: =DA10+1 -> 1909
F11: Start Date | G11: End Date | I11: J | J11: F | K11: M | L11: A | M11: M | N11: J | O11: J | P11: A | Q11: S | R11: O | S11: N | T11: D | U11: J | V11: F | W11: M | X11: A | Y11: M | Z11: J | AA11: J | AB11: A | AC11: S | AD11: O | AE11: N | AF11: D | AG11: J | AH11: F | AI11: M | AJ11: A | AK11: M | AL11: J | AM11: J | AN11: A | AO11: S | AP11: O | AQ11: N | AR11: D | AS11: J | AT11: F | AU11: M | AV11: A | AW11: M | AX11: J | AY11: J | AZ11: A | BA11: S | BB11: O | BC11: N | BD11: D | BE11: J | BF11: F | BG11: M | BH11: A | BI11: M | BJ11: J | BK11: J | BL11: A | BM11: S | BN11: O | BO11: N | BP11: D | BQ11: J | BR11: F | BS11: M | BT11: A | BU11: M | BV11: J | BW11: J | BX11: A | BY11: S | BZ11: O | CA11: N | CB11: D | CC11: J | CD11: F | CE11: M | CF11: A | CG11: M | CH11: J | CI11: J | CJ11: A | CK11: S | CL11: O | CM11: N | CN11: D | CO11: J | CP11: F | CQ11: M | CR11: A | CS11: M | CT11: J | CU11: J | CV11: A | CW11: S | CX11: O | CY11: N | CZ11: D | DA11: J | DB11: F | DC11: M | DD11: A | DE11: M | DF11: J | DG11: J | DH11: A | DI11: S | DJ11: O | DK11: N | DL11: D | DM11: J | DN11: F | DO11: M | DP11: A | DQ11: M | DR11: J | DS11: J | DT11: A | DU11: S | DV11: O | DW11: N | DX11: D
C12: =CONCATENATE('0. Plan Information'!D14,", ","Permit No. ",'0. Plan Information'!D15) -> , Permit No. | E12: =D12 -> 00:00:00 | H12: =IF(D12>$D$4,"Permit expires after plan review end date","Permit expires before plan review end date") -> Permit expires before plan review end date | I12: =IF(CONCATENATE(MONTH(I$6),YEAR(I$6))=CONCATENATE(MONTH($E12),YEAR($E12)),1,IF(AND(I$6>=DATE(YEAR($F12),MONTH($F12),1),I$6<=DATE(YEAR($G12),MONTH($G12),1)),2,IF(AND(I$6>=DATE(YEAR($D$3),MONTH($D$3),1),I$6<=DATE(YEAR($D$4),MONTH($D$4),1)),3,0))) -> 1 | J12: =IF(CONCATENATE(MONTH(J$6),YEAR(J$6))=CONCATENATE(MONTH($E12),YEAR($E12)),1,IF(AND(J$6>=DATE(YEAR($F12),MONTH($F12),1),J$6<=DATE(YEAR($G12),MONTH($G12),1)),2,IF(AND(J$6>=DATE(YEAR($D$3),MONTH($D$3),1),J$6<=DATE(YEAR($D$4),MONTH($D$4),1)),3,0))) -> 0 | K12: =IF(CONCATENATE(MONTH(K$6),YEAR(K$6))=CONCATENATE(MONTH($E12),YEAR($E12)),1,IF(AND(K$6>=DATE(YEAR($F12),MONTH($F12),1),K$6<=DATE(YEAR($G12),MONTH($G12),1)),2,IF(AND(K$6>=DATE(YEAR($D$3),MONTH($D$3),1),K$6<=DATE(YEAR($D$4),MONTH($D$4),1)),3,0))) -> 0 | L12: 0 | M12: 0 | N12: 0 | O12: 0 | P12: 0 | Q12: 0 | R12: 0 | S12: =IF(CONCATENATE(MONTH(S$6),YEAR(S$6))=CONCATENATE(MONTH($E12),YEAR($E12)),1,IF(AND(S$6>=DATE(YEAR($F12),MONTH($F12),1),S$6<=DATE(YEAR($G12),MONTH($G12),1)),2,IF(AND(S$6>=DATE(YEAR($D$3),MONTH($D$3),1),S$6<=DATE(YEAR($D$4),MONTH($D$4),1)),3,0))) -> 0 | T12: 0 | U12: 0 | V12: 0 | W12: 0 | X12: 0 | Y12: 0 | Z12: =IF(CONCATENATE(MONTH(Z$6),YEAR(Z$6))=CONCATENATE(MONTH($E12),YEAR($E12)),1,IF(AND(Z$6>=DATE(YEAR($F12),MONTH($F12),1),Z$6<=DATE(YEAR($G12),MONTH($G12),1)),2,IF(AND(Z$6>=DATE(YEAR($D$3),MONTH($D$3),1),Z$6<=DATE(YEAR($D$4),MONTH($D$4),1)),3,0))) -> 0 | AA12: 0 | AB12: 0 | AC12: 0 | AD12: 0 | AE12: 0 | AF12: 0 | AG12: 0 | AH12: 0 | AI12: 0 | AJ12: 0 | AK12: 0 | AL12: =IF(CONCATENATE(MONTH(AL$6),YEAR(AL$6))=CONCATENATE(MONTH($E12),YEAR($E12)),1,IF(AND(AL$6>=DATE(YEAR($F12),MONTH($F12),1),AL$6<=DATE(YEAR($G12),MONTH($G12),1)),2,IF(AND(AL$6>=DATE(YEAR($D$3),MONTH($D$3),1),AL$6<=DATE(YEAR($D$4),MONTH($D$4),1)),3,0))) -> 0 | AM12: 0 | AN12: 0 | AO12: 0 | AP12: 0 | AQ12: 0 | AR12: 0 | AS12: 0 | AT12: 0 | AU12: 0 | AV12: 0 | AW12: 0 | AX12: 0 | AY12: 0 | AZ12: 0 | BA12: 0 | BB12: 0 | BC12: 0 | BD12: 0 | BE12: 0 | BF12: 0 | BG12: 0 | BH12: 0 | BI12: 0 | BJ12: 0 | BK12: 0 | BL12: 0 | BM12: 0 | BN12: 0 | BO12: 0 | BP12: 0 | BQ12: 0 | BR12: 0 | BS12: 0 | BT12: 0 | BU12: 0 | BV12: 0 | BW12: 0 | BX12: 0 | BY12: 0 | BZ12: 0 | CA12: 0 | CB12: 0 | CC12: 0 | CD12: 0 | CE12: 0 | CF12: 0 | CG12: 0 | CH12: =IF(CONCATENATE(MONTH(CH$6),YEAR(CH$6))=CONCATENATE(MONTH($E12),YEAR($E12)),1,IF(AND(CH$6>=DATE(YEAR($F12),MONTH($F12),1),CH$6<=DATE(YEAR($G12),MONTH($G12),1)),2,IF(AND(CH$6>=DATE(YEAR($D$3),MONTH($D$3),1),CH$6<=DATE(YEAR($D$4),MONTH($D$4),1)),3,0))) -> 0 | CI12: 0 | CJ12: 0 | CK12: 0 | CL12: 0 | CM12: 0 | CN12: 0 | CO12: 0 | CP12: 0 | CQ12: 0 | CR12: 0 | CS12: 0 | CT12: 0 | CU12: 0 | CV12: 0 | CW12: 0 | CX12: 0 | CY12: 0 | CZ12: 0 | DA12: 0 | DB12: 0 | DC12: 0 | DD12: 0 | DE12: 0 | DF12: 0 | DG12: 0 | DH12: 0 | DI12: 0 | DJ12: 0 | DK12: 0 | DL12: 0 | DM12: 0 | DN12: 0 | DO12: 0 | DP12: 0 | DQ12: 0 | DR12: 0 | DS12: 0 | DT12: 0 | DU12: 0 | DV12: 0 | DW12: 0 | DX12: 0
C13: =CONCATENATE('0. Plan Information'!D20,", ","Permit No. ",'0. Plan Information'!D21) -> , Permit No. | E13: =D13 -> 00:00:00 | H13: =IF(D13>$D$4,"Permit expires after plan review end date","Permit expires before plan review end date") -> Permit expires before plan review end date | I13: =IF(CONCATENATE(MONTH(I$6),YEAR(I$6))=CONCATENATE(MONTH($E13),YEAR($E13)),1,IF(AND(I$6>=DATE(YEAR($F13),MONTH($F13),1),I$6<=DATE(YEAR($G13),MONTH($G13),1)),2,IF(AND(I$6>=DATE(YEAR($D$3),MONTH($D$3),1),I$6<=DATE(YEAR($D$4),MONTH($D$4),1)),3,0))) -> 1 | J13: 0 | K13: 0 | L13: 0 | M13: 0 | N13: 0 | O13: 0 | P13: 0 | Q13: 0 | R13: 0 | S13: 0 | T13: 0 | U13: 0 | V13: =IF(CONCATENATE(MONTH(V$6),YEAR(V$6))=CONCATENATE(MONTH($E13),YEAR($E13)),1,IF(AND(V$6>=DATE(YEAR($F13),MONTH($F13),1),V$6<=DATE(YEAR($G13),MONTH($G13),1)),2,IF(AND(V$6>=DATE(YEAR($D$3),MONTH($D$3),1),V$6<=DATE(YEAR($D$4),MONTH($D$4),1)),3,0))) -> 0 | W13: 0 | X13: 0 | Y13: 0 | Z13: 0 | AA13: 0 | AB13: 0 | AC13: 0 | AD13: 0 | AE13: 0 | AF13: 0 | AG13: 0 | AH13: 0 | AI13: 0 | AJ13: 0 | AK13: 0 | AL13: 0 | AM13: 0 | AN13: 0 | AO13: 0 | AP13: 0 | AQ13: 0 | AR13: 0 | AS13: 0 | AT13: 0 | AU13: 0 | AV13: 0 | AW13: 0 | AX13: 0 | AY13: 0 | AZ13: 0 | BA13: 0 | BB13: 0 | BC13: 0 | BD13: 0 | BE13: 0 | BF13: =IF(CONCATENATE(MONTH(BF$6),YEAR(BF$6))=CONCATENATE(MONTH($E13),YEAR($E13)),1,IF(AND(BF$6>=DATE(YEAR($F13),MONTH($F13),1),BF$6<=DATE(YEAR($G13),MONTH($G13),1)),2,IF(AND(BF$6>=DATE(YEAR($D$3),MONTH($D$3),1),BF$6<=DATE(YEAR($D$4),MONTH($D$4),1)),3,0))) -> 0 | BG13: 0 | BH13: 0 | BI13: 0 | BJ13: 0 | BK13: 0 | BL13: 0 | BM13: 0 | BN13: 0 | BO13: 0 | BP13: 0 | BQ13: 0 | BR13: 0 | BS13: 0 | BT13: 0 | BU13: 0 | BV13: 0 | BW13: 0 | BX13: 0 | BY13: 0 | BZ13: 0 | CA13: 0 | CB13: 0 | CC13: 0 | CD13: 0 | CE13: 0 | CF13: 0 | CG13: 0 | CH13: 0 | CI13: 0 | CJ13: 0 | CK13: 0 | CL13: 0 | CM13: 0 | CN13: 0 | CO13: 0 | CP13: 0 | CQ13: 0 | CR13: 0 | CS13: 0 | CT13: 0 | CU13: 0 | CV13: 0 | CW13: 0 | CX13: 0 | CY13: 0 | CZ13: 0 | DA13: 0 | DB13: 0 | DC13: 0 | DD13: 0 | DE13: 0 | DF13: 0 | DG13: 0 | DH13: 0 | DI13: 0 | DJ13: 0 | DK13: 0 | DL13: 0 | DM13: 0 | DN13: 0 | DO13: 0 | DP13: 0 | DQ13: 0 | DR13: 0 | DS13: 0 | DT13: 0 | DU13: 0 | DV13: 0 | DW13: 0 | DX13: 0
C14: =CONCATENATE('0. Plan Information'!D26,", ","Permit No. ",'0. Plan Information'!D27) -> , Permit No. | E14: 00:00:00 | H14: Permit expires before plan review end date | I14: 1 | J14: 0 | K14: 0 | L14: 0 | M14: 0 | N14: 0 | O14: 0 | P14: 0 | Q14: 0 | R14: 0 | S14: 0 | T14: 0 | U14: 0 | V14: 0 | W14: 0 | X14: 0 | Y14: 0 | Z14: 0 | AA14: 0 | AB14: 0 | AC14: 0 | AD14: 0 | AE14: 0 | AF14: 0 | AG14: 0 | AH14: 0 | AI14: 0 | AJ14: 0 | AK14: 0 | AL14: 0 | AM14: 0 | AN14: 0 | AO14: 0 | AP14: 0 | AQ14: 0 | AR14: 0 | AS14: 0 | AT14: 0 | AU14: 0 | AV14: 0 | AW14: 0 | AX14: 0 | AY14: 0 | AZ14: 0 | BA14: 0 | BB14: 0 | BC14: 0 | BD14: 0 | BE14: =IF(CONCATENATE(MONTH(BE$6),YEAR(BE$6))=CONCATENATE(MONTH($E14),YEAR($E14)),1,IF(AND(BE$6>=DATE(YEAR($F14),MONTH($F14),1),BE$6<=DATE(YEAR($G14),MONTH($G14),1)),2,IF(AND(BE$6>=DATE(YEAR($D$3),MONTH($D$3),1),BE$6<=DATE(YEAR($D$4),MONTH($D$4),1)),3,0))) -> 0 | BF14: 0 | BG14: 0 | BH14: 0 | BI14: 0 | BJ14: 0 | BK14: 0 | BL14: 0 | BM14: 0 | BN14: 0 | BO14: 0 | BP14: 0 | BQ14: 0 | BR14: 0 | BS14: 0 | BT14: 0 | BU14: 0 | BV14: 0 | BW14: 0 | BX14: 0 | BY14: 0 | BZ14: 0 | CA14: 0 | CB14: 0 | CC14: 0 | CD14: 0 | CE14: 0 | CF14: 0 | CG14: 0 | CH14: 0 | CI14: 0 | CJ14: 0 | CK14: 0 | CL14: 0 | CM14: 0 | CN14: 0 | CO14: 0 | CP14: 0 | CQ14: 0 | CR14: 0 | CS14: 0 | CT14: 0 | CU14: 0 | CV14: 0 | CW14: 0 | CX14: 0 | CY14: 0 | CZ14: 0 | DA14: 0 | DB14: 0 | DC14: 0 | DD14: 0 | DE14: 0 | DF14: 0 | DG14: 0 | DH14: 0 | DI14: 0 | DJ14: 0 | DK14: 0 | DL14: 0 | DM14: 0 | DN14: 0 | DO14: 0 | DP14: 0 | DQ14: 0 | DR14: 0 | DS14: 0 | DT14: 0 | DU14: 0 | DV14: 0 | DW14: 0 | DX14: 0 | EC14: 0
C15: =CONCATENATE('0. Plan Information'!D32,", ","Permit No. ",'0. Plan Information'!D33) -> , Permit No. | E15: 00:00:00 | H15: Permit expires before plan review end date | I15: 1 | J15: 0 | K15: 0 | L15: 0 | M15: 0 | N15: 0 | O15: 0 | P15: 0 | Q15: 0 | R15: 0 | S15: 0 | T15: 0 | U15: 0 | V15: 0 | W15: 0 | X15: 0 | Y15: 0 | Z15: 0 | AA15: 0 | AB15: 0 | AC15: 0 | AD15: 0 | AE15: 0 | AF15: 0 | AG15: 0 | AH15: 0 | AI15: 0 | AJ15: 0 | AK15: 0 | AL15: 0 | AM15: 0 | AN15: 0 | AO15: 0 | AP15: 0 | AQ15: 0 | AR15: 0 | AS15: 0 | AT15: 0 | AU15: 0 | AV15: 0 | AW15: 0 | AX15: 0 | AY15: 0 | AZ15: 0 | BA15: 0 | BB15: 0 | BC15: 0 | BD15: 0 | BE15: 0 | BF15: 0 | BG15: 0 | BH15: 0 | BI15: 0 | BJ15: 0 | BK15: 0 | BL15: 0 | BM15: 0 | BN15: 0 | BO15: 0 | BP15: 0 | BQ15: 0 | BR15: 0 | BS15: 0 | BT15: 0 | BU15: 0 | BV15: 0 | BW15: 0 | BX15: 0 | BY15: 0 | BZ15: 0 | CA15: 0 | CB15: 0 | CC15: 0 | CD15: 0 | CE15: 0 | CF15: 0 | CG15: 0 | CH15: 0 | CI15: 0 | CJ15: 0 | CK15: 0 | CL15: 0 | CM15: 0 | CN15: 0 | CO15: 0 | CP15: 0 | CQ15: 0 | CR15: 0 | CS15: 0 | CT15: 0 | CU15: 0 | CV15: 0 | CW15: 0 | CX15: 0 | CY15: 0 | CZ15: 0 | DA15: 0 | DB15: 0 | DC15: 0 | DD15: 0 | DE15: 0 | DF15: 0 | DG15: 0 | DH15: 0 | DI15: 0 | DJ15: 0 | DK15: 0 | DL15: 0 | DM15: 0 | DN15: 0 | DO15: 0 | DP15: 0 | DQ15: 0 | DR15: 0 | DS15: 0 | DT15: 0 | DU15: 0 | DV15: 0 | DW15: 0 | DX15: 0 | EC15: =IF(EC14=0,"",5) -> 
C16: =CONCATENATE('0. Plan Information'!D38,", ","Permit No. ",'0. Plan Information'!D39) -> , Permit No. | E16: 00:00:00 | H16: =IF(D16>$D$4,"Permit expires after plan review end date","Permit expires before plan review end date") -> Permit expires before plan review end date | I16: 1 | J16: 0 | K16: 0 | L16: 0 | M16: 0 | N16: 0 | O16: 0 | P16: 0 | Q16: 0 | R16: 0 | S16: 0 | T16: 0 | U16: 0 | V16: 0 | W16: 0 | X16: 0 | Y16: 0 | Z16: 0 | AA16: 0 | AB16: 0 | AC16: 0 | AD16: 0 | AE16: 0 | AF16: 0 | AG16: 0 | AH16: 0 | AI16: 0 | AJ16: 0 | AK16: 0 | AL16: 0 | AM16: 0 | AN16: 0 | AO16: 0 | AP16: 0 | AQ16: 0 | AR16: 0 | AS16: 0 | AT16: 0 | AU16: 0 | AV16: 0 | AW16: 0 | AX16: 0 | AY16: 0 | AZ16: 0 | BA16: 0 | BB16: 0 | BC16: 0 | BD16: 0 | BE16: 0 | BF16: 0 | BG16: 0 | BH16: 0 | BI16: 0 | BJ16: 0 | BK16: 0 | BL16: 0 | BM16: 0 | BN16: 0 | BO16: 0 | BP16: 0 | BQ16: 0 | BR16: 0 | BS16: 0 | BT16: 0 | BU16: 0 | BV16: 0 | BW16: 0 | BX16: 0 | BY16: 0 | BZ16: 0 | CA16: 0 | CB16: 0 | CC16: 0 | CD16: 0 | CE16: 0 | CF16: 0 | CG16: 0 | CH16: 0 | CI16: 0 | CJ16: 0 | CK16: 0 | CL16: 0 | CM16: 0 | CN16: 0 | CO16: 0 | CP16: 0 | CQ16: 0 | CR16: 0 | CS16: 0 | CT16: 0 | CU16: 0 | CV16: 0 | CW16: 0 | CX16: 0 | CY16: =IF(CONCATENATE(MONTH(CY$6),YEAR(CY$6))=CONCATENATE(MONTH($E16),YEAR($E16)),1,IF(AND(CY$6>=DATE(YEAR($F16),MONTH($F16),1),CY$6<=DATE(YEAR($G16),MONTH($G16),1)),2,IF(AND(CY$6>=DATE(YEAR($D$3),MONTH($D$3),1),CY$6<=DATE(YEAR($D$4),MONTH($D$4),1)),3,0))) -> 0 | CZ16: 0 | DA16: 0 | DB16: 0 | DC16: 0 | DD16: =IF(CONCATENATE(MONTH(DD$6),YEAR(DD$6))=CONCATENATE(MONTH($E16),YEAR($E16)),1,IF(AND(DD$6>=DATE(YEAR($F16),MONTH($F16),1),DD$6<=DATE(YEAR($G16),MONTH($G16),1)),2,IF(AND(DD$6>=DATE(YEAR($D$3),MONTH($D$3),1),DD$6<=DATE(YEAR($D$4),MONTH($D$4),1)),3,0))) -> 0 | DE16: 0 | DF16: 0 | DG16: 0 | DH16: 0 | DI16: 0 | DJ16: =IF(CONCATENATE(MONTH(DJ$6),YEAR(DJ$6))=CONCATENATE(MONTH($E16),YEAR($E16)),1,IF(AND(DJ$6>=DATE(YEAR($F16),MONTH($F16),1),DJ$6<=DATE(YEAR($G16),MONTH($G16),1)),2,IF(AND(DJ$6>=DATE(YEAR($D$3),MONTH($D$3),1),DJ$6<=DATE(YEAR($D$4),MONTH($D$4),1)),3,0))) -> 0 | DK16: 0 | DL16: 0 | DM16: 0 | DN16: 0 | DO16: 0 | DP16: 0 | DQ16: 0 | DR16: 0 | DS16: 0 | DT16: 0 | DU16: 0 | DV16: 0 | DW16: 0 | DX16: 0
C17: =CONCATENATE('0. Plan Information'!D44,", ","Permit No. ",'0. Plan Information'!D45) -> , Permit No. | E17: 00:00:00 | H17: Permit expires before plan review end date | I17: 1 | J17: 0 | K17: 0 | L17: 0 | M17: 0 | N17: 0 | O17: 0 | P17: 0 | Q17: 0 | R17: 0 | S17: 0 | T17: 0 | U17: 0 | V17: 0 | W17: 0 | X17: 0 | Y17: 0 | Z17: 0 | AA17: 0 | AB17: 0 | AC17: 0 | AD17: 0 | AE17: 0 | AF17: 0 | AG17: 0 | AH17: 0 | AI17: 0 | AJ17: 0 | AK17: 0 | AL17: 0 | AM17: 0 | AN17: 0 | AO17: 0 | AP17: =IF(CONCATENATE(MONTH(AP$6),YEAR(AP$6))=CONCATENATE(MONTH($E17),YEAR($E17)),1,IF(AND(AP$6>=DATE(YEAR($F17),MONTH($F17),1),AP$6<=DATE(YEAR($G17),MONTH($G17),1)),2,IF(AND(AP$6>=DATE(YEAR($D$3),MONTH($D$3),1),AP$6<=DATE(YEAR($D$4),MONTH($D$4),1)),3,0))) -> 0 | AQ17: 0 | AR17: 0 | AS17: 0 | AT17: 0 | AU17: 0 | AV17: 0 | AW17: 0 | AX17: 0 | AY17: 0 | AZ17: 0 | BA17: 0 | BB17: 0 | BC17: 0 | BD17: 0 | BE17: 0 | BF17: 0 | BG17: 0 | BH17: 0 | BI17: 0 | BJ17: 0 | BK17: 0 | BL17: 0 | BM17: 0 | BN17: 0 | BO17: 0 | BP17: 0 | BQ17: 0 | BR17: 0 | BS17: 0 | BT17: 0 | BU17: 0 | BV17: 0 | BW17: 0 | BX17: 0 | BY17: 0 | BZ17: 0 | CA17: 0 | CB17: 0 | CC17: 0 | CD17: 0 | CE17: 0 | CF17: 0 | CG17: 0 | CH17: 0 | CI17: 0 | CJ17: 0 | CK17: 0 | CL17: 0 | CM17: 0 | CN17: 0 | CO17: 0 | CP17: 0 | CQ17: 0 | CR17: 0 | CS17: 0 | CT17: 0 | CU17: 0 | CV17: 0 | CW17: 0 | CX17: 0 | CY17: 0 | CZ17: 0 | DA17: 0 | DB17: 0 | DC17: 0 | DD17: =IF(CONCATENATE(MONTH(DD$6),YEAR(DD$6))=CONCATENATE(MONTH($E17),YEAR($E17)),1,IF(AND(DD$6>=DATE(YEAR($F17),MONTH($F17),1),DD$6<=DATE(YEAR($G17),MONTH($G17),1)),2,IF(AND(DD$6>=DATE(YEAR($D$3),MONTH($D$3),1),DD$6<=DATE(YEAR($D$4),MONTH($D$4),1)),3,0))) -> 0 | DE17: 0 | DF17: 0 | DG17: 0 | DH17: 0 | DI17: 0 | DJ17: 0 | DK17: 0 | DL17: 0 | DM17: 0 | DN17: 0 | DO17: 0 | DP17: 0 | DQ17: 0 | DR17: 0 | DS17: 0 | DT17: 0 | DU17: 0 | DV17: 0 | DW17: 0 | DX17: 0
E19: 0 | F19: blank
E20: 1 | F20: event
E21: 2 | F21: window | G21: variable
E22: 3 | F22: plan review

Sheet 2. Activity Log
B1: Instructions: Select the plan review step from the dropdown and enter the reviewer name, completion date, notes, and whether follow-up with the permittee is needed. If there is follow-up, enter the date and any relevant notes. | I1: Yes
B2: Activity Log | I2: No | J2: WW technical review
B3: Review Step | C3: Reviewer Name | D3: Date Complete | E3: Review Notes | F3: Follow-Up Required? | G3: Follow-Up Date | H3: Follow Up Notes | J3: CSO technical review
J4: SW technical review
J5: Enforcement
J6: Management
J7: Modeling
J8: Economist

Sheet 3. Plan Review
B1: Instructions: Indicate what information the plan addresses for each element using the dropdowns in the purple tool input cells. Enter additional information to support your determination (e.g., plan page number, description of plan element) in the gray optional input cells. Add any questions specific to your permitting authority in the "Placeholder" cells with red text.
B3: Element 1: A Description of the Water Quality, Human Health, and Regulatory Issues the Plan Addresses | G3: Yes
B4: Question | E4: Answer & Notes | G4: Somewhat
B5: Required Elements | G5: No
A6: =E6 -> 0 | B6: E1.1 | C6: Does the plan include a description of the water quality, public health and regulatory issues to be addressed? If yes, note the plan section to the right.
A7: =E7 -> 0 | B7: E1.2 | C7: Does the plan identify multiple current or anticipated Clean Water Act obligations? If yes, note the plan section to the right.
B8: Additional Considerations
A9: =E9 -> 0 | B9: E1.3 | C9: What non-Clean Water Act challenges and requirements are mentioned in the plan? | D9: None?
A10: =E10 -> 0 | D10: Source water protection?
A11: 0 | D11: Water supply?
A12: 0 | D12: High risk assets?
A13: 0 | D13: Other (describe to the right)?
A14: 0 | B14: E1.4 | C14: Did the municipality use tools to identify water quality and human health goals and objectives?
B15: E1.5 | C15: Did the municipality identify environmental justice concerns?
B16: E1.6 | C16: Did the municipality identify sensitive areas?
A17: 0 | B17: E1.7 | C17: What additional natural resources and locations are mentioned in the plan?
B18: E1.8 | C18: [Placeholder: Include any questions specific to your permitting authority here]
A19: 0 | B19: E1.9 | C19: Are there any additional comments on Element 1?
B20: Element 2: A Description of Existing Wastewater and Stormwater Systems in the Plan and How They Currently Function
B21: Question | E21: Answer & Notes
B22: Required Elements
A23: =E23 -> 0 | B23: E2.1 | C23: Does the plan include a description of the existing wastewater and stormwater systems in the plan? If yes, note the plan section to the right.
B24: Additional Considerations
A25: 0 | B25: E2.2 | C25: What systems are characterized (including infrastructure components, capacity, condition, and age)? | D25: Separate sanitary sewer systems?
A26: 0 | D26: Storm sewer systems?
A27: 0 | D27: Combined sewer systems?
A28: 0 | D28: WWTF?
A29: 0 | D29: Other (describe to the right)?
A30: 0 | B30: E2.3 | C30: What flows and discharges are characterized? | D30: Collection system flows?
A31: 0 | D31: Infiltration and inflow?
A32: 0 | D32: Influent WWTF flows?
A33: 0 | D33: Effluent WWTF flows?
A34: 0 | D34: Pollutant loading?
A35: 0 | D35: Water quality sampling data?
A36: 0 | D36: Other (describe to the right)?
B37: E2.4 | C37: [Placeholder: Include any questions specific to your permitting authority here]
A38: 0 | B38: E2.5 | C38: Are there any additional comments on Element 2?
B39: Element 3: A Process for Continuous Stakeholder Engagement During the Planning Process and During Plan Implementation
B40: Question | E40: Answer & Notes
B41: Required Elements
A42: 0 | B42: E3.1 | C42: Does the plan include a process for engaging stakeholders and allowing for public input? If yes, note the plan section to the right.
B43: E3.2 | C43: Did the municipality involve stakeholders to identify community objectives that became part of the integrated planning goals? If yes, note the plan section to the right.
B44: Additional Considerations
B45: E3.3 | C45: Were stakeholders included in the project prioritization process?
A46: 0 | B46: E3.4 | C46: What stakeholders are identified? | D46: Municipal departments?
A47: 0 | D47: Industry?
A48: 0 | D48: Local environmental groups and organizations?
A49: 0 | D49: Other municipalities?
A50: 0 | D50: Municipal consultants?
A51: 0 | D51: Educational groups?
A52: 0 | D52: State and government agencies?
A53: 0 | D53: Residents?
A54: 0 | D54: Public schools?
A55: 0 | D55: Neighborhood/civic associations?
A56: 0 | D56: Other (describe to the right)?
A57: 0 | B57: E3.5 | C57: What stakeholder motivations are identified? | D57: Regulatory compliance?
A58: 0 | D58: Financial impacts?
A59: 0 | D59: Recreation opportunities?
A60: 0 | D60: Decrease in flooding?
A61: 0 | D61: Increased fees?
A62: 0 | D62: Other (describe to the right)?
A63: 0 | B63: E3.6 | C63: What engagement techniques does the plan include? | D63: Website?
A64: 0 | D64: In-person meetings?
A65: 0 | D65: Recreation opportunities?
A66: 0 | D66: Events?
A67: 0 | D67: Outreach materials?
A68: 0 | D68: Other (describe to the right)?
B69: E3.7 | C69: [Placeholder: Include any questions specific to your permitting authority here]
A70: 0 | B70: E3.8 | C70: Are there any additional comments on Element 3?
B71: Element 4: A Process for Choosing Alternatives and Proposing Implementation Schedules
B72: Question | E72: Answer & Notes
B73: Required Elements
A74: 0 | B74: E4.1 | C74: Are Clean Water Act goals identified in the plan? If yes, note the plan section to the right.
A75: =E75 -> 0 | B75: E4.2 | C75: Does the plan present and evaluate one or more alternatives to existing requirements? If yes, note the plan section to the right.
A76: =E76 -> 0 | B76: E4.3 | C76: Did the plan include an adequate description of modeling information, calculations, and analyses (i.e., model used, inputs, outputs, assumptions)? If yes, note the plan section to the right.
A77: =E77 -> 0 | B77: E4.4 | C77: Does the plan include a financial capability assessment? If yes, note the plan section to the right.
B78: Additional Considerations
B79: E4.5 | C79: Are non-Clean Water Act goals identified in the plan?
B80: E4.6 | C80: Are objectives established for each goal?
A81: 0 | B81: E4.7 | C81: Does the financial assessment evaluate the financial burden on ratepayers for both existing requirements and the selected alternative?
A82: =E82 -> 0 | B82: E4.8 | C82: Does the FCA account for other metrics (e.g., drinking water costs, water affordability programs, asset management costs, stormwater management costs, comparisons to county, state, and national data)?
B83: E4.9 | C83: Does the plan consider options to lower costs of compliance and reduce or mitigate the financial impact of water service costs on the community’s low-income households?
C84: (see FCA Guidance Appendix C for examples and case studies)
B85: E4.10 | C85: [Placeholder: Include any questions specific to your permitting authority here]
A86: =E86 -> 0 | B86: E4.11 | C86: Are there any additional comments on Element 4?
B87: Element 5: A Process for Measuring the Success of an Implemented Alternative
B88: Question | E88: Answer & Notes
B89: Required Elements
A90: 0 | B90: E5.1 | C90: Does the plan include a process for measuring the success of an implemented alternative? If yes, note the plan section to the right.
A91: 0 | B91: E5.2 | C91: Does the plan identify quantifiable targets and milestones? If yes, note the plan section to the right.
B92: Additional Considerations
A93: 0 | B93: E5.3 | C93: What evaluation metrics does the plan identify to measure progress towards the integrated planning goals? | D93: Pollutant load reductions?
A94: 0 | D94: Number of CSOs or SSOs?
A95: 0 | D95: Volume of CSOs or SSOs?
A96: 0 | D96: Acres of disconnected impervious areas?
A97: 0 | D97: Reduction of pollutants in receiving water quality?
A98: 0 | D98: Other (describe to the right)?
B99: E5.4 | C99: [Placeholder: Include any questions specific to your permitting authority here]
A100: 0 | B100: E5.5 | C100: Are there any additional comments on Element 5?
B101: Element 6: A Process to Improve the Plan Over Time by Choosing New or Modified Projects and Implementation Schedules
B102: Question | E102: Answer & Notes
B103: Required Elements
A104: 0 | B104: E6.1 | C104: Does the plan include a process to evaluate planning outcomes over time? If yes, note the plan section to the right.
A105: 0 | B105: E6.2 | C105: Does the modification process ensure that water quality goals will be met through integrated plan implementation? If yes, note the plan section to the right.
B106: Additional Considerations
B107: E6.3 | C107: [Placeholder: Include any questions specific to your permitting authority here]
A108: 0 | B108: E6.4 | C108: Are there any additional comments on Element 6?

Sheet 4. Plan Completeness Summary
B1: Instructions: Element completeness cells use the Plan Review tab to summarize how completely the plan addresses each element. Red cells indicate that a required part of an element was not completed. Based on follow up with the permittee, indicate whether the missing information was resolved, including the follow up date and any relevant notes.
H2: Yes
B3: Integrated Plan Completeness Summary | H3: No
B4: Element Summary | D4: Follow-up
B5: Element Completeness | D5: Resolved? | E5: Resolved Date | F5: Resolved Notes | I5: Blank | J5: Yes | K5: Somewhat | L5: No | M5: Blank, Somewhat and No
B6: Element 1: Describing Requirements and Drivers | C6: =IF(AND(J6="",K6="",L6=""),"",IF(AND(I6="",K6="",L6=""),"All required elements have been addressed.",IF(M6<>"",CONCATENATE("Element(s) ",M6," must still be addressed."),""))) ->  | H6: E6:E7 | I6: =_xlfn.TEXTJOIN(", ",TRUE,IF('3. Plan Review'!E6:E7="",'3. Plan Review'!B6:B7,"")) -> E1.1, E1.2 | J6: =_xlfn.TEXTJOIN(", ",TRUE,IF('3. Plan Review'!E6:E7="Yes",'3. Plan Review'!B6:B7,"")) ->  | K6: =_xlfn.TEXTJOIN(", ",TRUE,IF('3. Plan Review'!E6:E7="Somewhat",'3. Plan Review'!B6:B7,"")) ->  | L6: =_xlfn.TEXTJOIN(", ",TRUE,IF('3. Plan Review'!E6:E7="No",'3. Plan Review'!B6:B7,"")) ->  | M6: =IF(AND(I6="",K6=""),L6,IF(AND(I6="",L6=""),K6,IF(AND(K6="",L6=""),I6,IF(I6="",CONCATENATE(K6,", ",L6),IF(K6="",CONCATENATE(I6,", ",L6),IF(L6="",CONCATENATE(I6,", ",K6),CONCATENATE(I6,", ",K6,", ",L6))))))) -> E1.1, E1.2
B7: Element 2: Characterizing Systems | C7: =IF(AND(J7="",K7="",L7=""),"",IF(AND(I7="",K7="",L7=""),"All required elements have been addressed.",IF(M7<>"",CONCATENATE("Element(s) ",M7," must still be addressed."),""))) ->  | H7: E23 | I7: =_xlfn.TEXTJOIN(", ",TRUE,IF('3. Plan Review'!E23="",'3. Plan Review'!B23,"")) -> E2.1 | J7: =_xlfn.TEXTJOIN(", ",TRUE,IF('3. Plan Review'!E23="Yes",'3. Plan Review'!B23,"")) ->  | K7: =_xlfn.TEXTJOIN(", ",TRUE,IF('3. Plan Review'!E23="Somewhat",'3. Plan Review'!B23,"")) ->  | L7: =_xlfn.TEXTJOIN(", ",TRUE,IF('3. Plan Review'!E23="No",'3. Plan Review'!B23,"")) ->  | M7: =IF(AND(I7="",K7=""),L7,IF(AND(I7="",L7=""),K7,IF(AND(K7="",L7=""),I7,IF(I7="",CONCATENATE(K7,", ",L7),IF(K7="",CONCATENATE(I7,", ",L7),IF(L7="",CONCATENATE(I7,", ",K7),CONCATENATE(I7,", ",K7,", ",L7))))))) -> E2.1
B8: Element 3: Engaging Stakeholders | H8: E42:E43 | I8: =_xlfn.TEXTJOIN(", ",TRUE,IF('3. Plan Review'!E42:E43="",'3. Plan Review'!B42:B43,"")) -> E3.1, E3.2 | J8: =_xlfn.TEXTJOIN(", ",TRUE,IF('3. Plan Review'!E42:E43="Yes",'3. Plan Review'!B42:B43,"")) ->  | K8: =_xlfn.TEXTJOIN(", ",TRUE,IF('3. Plan Review'!E42:E43="Somewhat",'3. Plan Review'!B42:B43,"")) ->  | L8: =_xlfn.TEXTJOIN(", ",TRUE,IF('3. Plan Review'!E42:E43="No",'3. Plan Review'!B42:B43,"")) ->  | M8: E3.1, E3.2
B9: Element 4: Developing and Selecting Alternatives | H9: E74:E77 | I9: =_xlfn.TEXTJOIN(", ",TRUE,IF('3. Plan Review'!E74:E77="",'3. Plan Review'!B74:B77,"")) -> E4.1, E4.2, E4.3, E4.4 | J9: =_xlfn.TEXTJOIN(", ",TRUE,IF('3. Plan Review'!E74:E77="Yes",'3. Plan Review'!B74:B77,"")) ->  | K9: =_xlfn.TEXTJOIN(", ",TRUE,IF('3. Plan Review'!E74:E77="Somewhat",'3. Plan Review'!B74:B77,"")) ->  | L9: =_xlfn.TEXTJOIN(", ",TRUE,IF('3. Plan Review'!E74:E77="No",'3. Plan Review'!B74:B77,"")) ->  | M9: E4.1, E4.2, E4.3, E4.4
B10: Element 5: Measuring Performance | H10: E89:E90 | I10: =_xlfn.TEXTJOIN(", ",TRUE,IF('3. Plan Review'!E90:E91="",'3. Plan Review'!B90:B91,"")) -> E5.1, E5.2 | J10: =_xlfn.TEXTJOIN(", ",TRUE,IF('3. Plan Review'!E90:E91="Yes",'3. Plan Review'!B90:B91,"")) ->  | K10: =_xlfn.TEXTJOIN(", ",TRUE,IF('3. Plan Review'!E90:E91="Somewhat",'3. Plan Review'!B90:B91,"")) ->  | L10: =_xlfn.TEXTJOIN(", ",TRUE,IF('3. Plan Review'!E90:E91="No",'3. Plan Review'!B90:B91,"")) ->  | M10: E5.1, E5.2
B11: Element 6: Adapting for Success | H11: E103:E104 | I11: =_xlfn.TEXTJOIN(", ",TRUE,IF('3. Plan Review'!E104:E105="",'3. Plan Review'!B104:B105,"")) -> E6.1, E6.2 | J11: =_xlfn.TEXTJOIN(", ",TRUE,IF('3. Plan Review'!E104:E105="Yes",'3. Plan Review'!B104:B105,"")) ->  | K11: =_xlfn.TEXTJOIN(", ",TRUE,IF('3. Plan Review'!E104:E105="Somewhat",'3. Plan Review'!B104:B105,"")) ->  | L11: =_xlfn.TEXTJOIN(", ",TRUE,IF('3. Plan Review'!E104:E105="No",'3. Plan Review'!B104:B105,"")) ->  | M11: E6.1, E6.2

Sheet 5. Adequacy Summary
B1: Instructions: Enter information from the plan about proposed outcomes, revised compliance deadlines, and the permittee justification in purple tool input cells. Note that the Plan Outcome Adequacy table is populated based on the compliance requirements entered in the Plan Information tab. Use the optional questions under Water Quality Objectives to elaborate on the justification for an integrated approach to permit compliance. Add any questions specific to your permitting authority in the "Placeholder" cells with red text.
B3: Plan Outcome Adequacy - Permit Requirements | I3: Yes | J3: Yes
B4: Original Permit Requirements | E4: Proposed Integrated Plan Outcome | I4: Somewhat | J4: No
B5: Original Compliance Requirement | D5: Original Compliance Deadline | E5: Proposed Plan Outcome | G5: Proposed Compliance Deadline | H5: Permittee Justification for Adjustment | I5: No
A7: =IF(C8="",0,1) -> 0 | B7: ='1. Adminstrative Timeline'!$C$12 -> , Permit No.
A8: =IF(C8="",0,1) -> 0 | B8: ='1. Adminstrative Timeline'!$C$12 -> , Permit No. | C8: =IF('0. Plan Information'!G14="","",'0. Plan Information'!G14) ->  | D8: =IF('0. Plan Information'!H14="","",'0. Plan Information'!H14) -> 
A9: =IF(C9="",0,1) -> 0 | B9: ='1. Adminstrative Timeline'!$C$12 -> , Permit No. | C9: =IF('0. Plan Information'!G15="","",'0. Plan Information'!G15) ->  | D9: =IF('0. Plan Information'!H15="","",'0. Plan Information'!H15) -> 
A10: 0 | B10: ='1. Adminstrative Timeline'!$C$12 -> , Permit No. | C10: =IF('0. Plan Information'!G16="","",'0. Plan Information'!G16) ->  | D10: =IF('0. Plan Information'!H16="","",'0. Plan Information'!H16) -> 
A11: 0 | B11: ='1. Adminstrative Timeline'!$C$12 -> , Permit No. | C11: =IF('0. Plan Information'!G17="","",'0. Plan Information'!G17) ->  | D11: =IF('0. Plan Information'!H17="","",'0. Plan Information'!H17) -> 
A12: 0 | B12: ='1. Adminstrative Timeline'!$C$12 -> , Permit No. | C12: =IF('0. Plan Information'!G18="","",'0. Plan Information'!G18) ->  | D12: =IF('0. Plan Information'!H18="","",'0. Plan Information'!H18) -> 
A13: =SUM(A7:A11) -> 0
A14: =IF(C15="",0,1) -> 0 | B14: ='1. Adminstrative Timeline'!$C$13 -> , Permit No.
A15: =IF(C15="",0,1) -> 0 | B15: ='1. Adminstrative Timeline'!$C$13 -> , Permit No. | C15: =IF('0. Plan Information'!G20="","",'0. Plan Information'!G20) ->  | D15: =IF('0. Plan Information'!H20="","",'0. Plan Information'!H20) -> 
A16: =IF(C16="",0,1) -> 0 | B16: ='1. Adminstrative Timeline'!$C$13 -> , Permit No. | C16: =IF('0. Plan Information'!G21="","",'0. Plan Information'!G21) ->  | D16: =IF('0. Plan Information'!H21="","",'0. Plan Information'!H21) -> 
A17: 0 | B17: ='1. Adminstrative Timeline'!$C$13 -> , Permit No. | C17: =IF('0. Plan Information'!G22="","",'0. Plan Information'!G22) ->  | D17: =IF('0. Plan Information'!H22="","",'0. Plan Information'!H22) -> 
A18: 0 | B18: ='1. Adminstrative Timeline'!$C$13 -> , Permit No. | C18: =IF('0. Plan Information'!G23="","",'0. Plan Information'!G23) ->  | D18: =IF('0. Plan Information'!H23="","",'0. Plan Information'!H23) -> 
A19: 0 | B19: ='1. Adminstrative Timeline'!$C$13 -> , Permit No. | C19: =IF('0. Plan Information'!G24="","",'0. Plan Information'!G24) ->  | D19: =IF('0. Plan Information'!H24="","",'0. Plan Information'!H24) -> 
A20: =SUM(A14:A18) -> 0
A21: =IF(C22="",0,1) -> 0 | B21: ='1. Adminstrative Timeline'!$C$14 -> , Permit No.
A22: =IF(C22="",0,1) -> 0 | B22: ='1. Adminstrative Timeline'!$C$14 -> , Permit No. | C22: =IF('0. Plan Information'!G26="","",'0. Plan Information'!G26) ->  | D22: =IF('0. Plan Information'!H26="","",'0. Plan Information'!H26) -> 
A23: =IF(C23="",0,1) -> 0 | B23: ='1. Adminstrative Timeline'!$C$14 -> , Permit No. | C23: =IF('0. Plan Information'!G27="","",'0. Plan Information'!G27) ->  | D23: =IF('0. Plan Information'!H27="","",'0. Plan Information'!H27) -> 
A24: =IF(C24="",0,1) -> 0 | B24: ='1. Adminstrative Timeline'!$C$14 -> , Permit No. | C24: =IF('0. Plan Information'!G28="","",'0. Plan Information'!G28) ->  | D24: =IF('0. Plan Information'!H28="","",'0. Plan Information'!H28) -> 
A25: 0 | B25: ='1. Adminstrative Timeline'!$C$14 -> , Permit No. | C25: =IF('0. Plan Information'!G29="","",'0. Plan Information'!G29) ->  | D25: =IF('0. Plan Information'!H29="","",'0. Plan Information'!H29) -> 
A26: 0 | B26: ='1. Adminstrative Timeline'!$C$14 -> , Permit No. | C26: =IF('0. Plan Information'!G30="","",'0. Plan Information'!G30) ->  | D26: =IF('0. Plan Information'!H30="","",'0. Plan Information'!H30) -> 
A27: =SUM(A21:A25) -> 0
A28: =IF(C29="",0,1) -> 0 | B28: ='1. Adminstrative Timeline'!$C$15 -> , Permit No.
A29: =IF(C29="",0,1) -> 0 | B29: ='1. Adminstrative Timeline'!$C$15 -> , Permit No. | C29: =IF('0. Plan Information'!G32="","",'0. Plan Information'!G32) ->  | D29: =IF('0. Plan Information'!H32="","",'0. Plan Information'!H32) -> 
A30: =IF(C30="",0,1) -> 0 | B30: ='1. Adminstrative Timeline'!$C$15 -> , Permit No. | C30: =IF('0. Plan Information'!G33="","",'0. Plan Information'!G33) ->  | D30: =IF('0. Plan Information'!H33="","",'0. Plan Information'!H33) -> 
A31: 0 | B31: ='1. Adminstrative Timeline'!$C$15 -> , Permit No. | C31: =IF('0. Plan Information'!G34="","",'0. Plan Information'!G34) ->  | D31: =IF('0. Plan Information'!H34="","",'0. Plan Information'!H34) -> 
A32: 0 | B32: ='1. Adminstrative Timeline'!$C$15 -> , Permit No. | C32: =IF('0. Plan Information'!G35="","",'0. Plan Information'!G35) ->  | D32: =IF('0. Plan Information'!H35="","",'0. Plan Information'!H35) -> 
A33: 0 | B33: ='1. Adminstrative Timeline'!$C$15 -> , Permit No. | C33: =IF('0. Plan Information'!G36="","",'0. Plan Information'!G36) ->  | D33: =IF('0. Plan Information'!H36="","",'0. Plan Information'!H36) -> 
A34: =SUM(A28:A32) -> 0
A35: =IF(C36="",0,1) -> 0 | B35: ='1. Adminstrative Timeline'!$C$16 -> , Permit No.
A36: =IF(C36="",0,1) -> 0 | B36: ='1. Adminstrative Timeline'!$C$16 -> , Permit No. | C36: =IF('0. Plan Information'!G38="","",'0. Plan Information'!G38) ->  | D36: =IF('0. Plan Information'!H38="","",'0. Plan Information'!H38) -> 
A37: =IF(C37="",0,1) -> 0 | B37: ='1. Adminstrative Timeline'!$C$16 -> , Permit No. | C37: =IF('0. Plan Information'!G39="","",'0. Plan Information'!G39) ->  | D37: =IF('0. Plan Information'!H39="","",'0. Plan Information'!H39) -> 
A38: 0 | B38: ='1. Adminstrative Timeline'!$C$16 -> , Permit No. | C38: =IF('0. Plan Information'!G40="","",'0. Plan Information'!G40) ->  | D38: =IF('0. Plan Information'!H40="","",'0. Plan Information'!H40) -> 
A39: 0 | B39: ='1. Adminstrative Timeline'!$C$16 -> , Permit No. | C39: =IF('0. Plan Information'!G41="","",'0. Plan Information'!G41) ->  | D39: =IF('0. Plan Information'!H41="","",'0. Plan Information'!H41) -> 
A40: 0 | B40: ='1. Adminstrative Timeline'!$C$16 -> , Permit No. | C40: =IF('0. Plan Information'!G42="","",'0. Plan Information'!G42) ->  | D40: =IF('0. Plan Information'!H42="","",'0. Plan Information'!H42) -> 
A41: =SUM(A35:A39) -> 0
A42: =IF(C43="",0,1) -> 0 | B42: ='1. Adminstrative Timeline'!$C$17 -> , Permit No.
A43: =IF(C43="",0,1) -> 0 | B43: ='1. Adminstrative Timeline'!$C$17 -> , Permit No. | C43: =IF('0. Plan Information'!G44="","",'0. Plan Information'!G44) ->  | D43: =IF('0. Plan Information'!H44="","",'0. Plan Information'!H44) -> 
A44: =IF(C44="",0,1) -> 0 | B44: ='1. Adminstrative Timeline'!$C$17 -> , Permit No. | C44: =IF('0. Plan Information'!G45="","",'0. Plan Information'!G45) ->  | D44: =IF('0. Plan Information'!H45="","",'0. Plan Information'!H45) -> 
A45: 0 | B45: ='1. Adminstrative Timeline'!$C$17 -> , Permit No. | C45: =IF('0. Plan Information'!G46="","",'0. Plan Information'!G46) ->  | D45: =IF('0. Plan Information'!H46="","",'0. Plan Information'!H46) -> 
A46: 0 | B46: ='1. Adminstrative Timeline'!$C$17 -> , Permit No. | C46: =IF('0. Plan Information'!G47="","",'0. Plan Information'!G47) ->  | D46: =IF('0. Plan Information'!H47="","",'0. Plan Information'!H47) -> 
A47: 0 | B47: ='1. Adminstrative Timeline'!$C$17 -> , Permit No. | C47: =IF('0. Plan Information'!G48="","",'0. Plan Information'!G48) ->  | D47: =IF('0. Plan Information'!H48="","",'0. Plan Information'!H48) -> 
A48: =SUM(A42:A46) -> 0
B49: Plan Outcome Adequacy - Enforcement Requirements | I49: Yes | J49: Yes
B50: Original Enforcement Requirements | E50: Proposed Integrated Plan Outcome | I50: Somewhat | J50: No
B51: Original Compliance Requirement | D51: Original Compliance Deadline | E51: Proposed Plan Outcome | G51: Proposed Compliance Deadline | H51: Permittee Justification for Adjustment | I51: No
A53: =IF(C54="",0,1) -> 0 | B53: =CONCATENATE("Enforcement Mechanism 1: ",'0. Plan Information'!D53) -> Enforcement Mechanism 1:
A54: =IF(C54="",0,1) -> 0 | B54: ='1. Adminstrative Timeline'!$C$12 -> , Permit No. | C54: =IF('0. Plan Information'!G53="","",'0. Plan Information'!G53) ->  | D54: =IF('0. Plan Information'!H53="","",'0. Plan Information'!H53) -> 
A55: =IF(C55="",0,1) -> 0 | B55: ='1. Adminstrative Timeline'!$C$12 -> , Permit No. | C55: =IF('0. Plan Information'!G54="","",'0. Plan Information'!G54) ->  | D55: =IF('0. Plan Information'!H54="","",'0. Plan Information'!H54) -> 
A56: 0 | B56: ='1. Adminstrative Timeline'!$C$12 -> , Permit No. | C56: =IF('0. Plan Information'!G55="","",'0. Plan Information'!G55) ->  | D56: =IF('0. Plan Information'!H55="","",'0. Plan Information'!H55) -> 
A57: 0 | B57: ='1. Adminstrative Timeline'!$C$12 -> , Permit No. | C57: =IF('0. Plan Information'!G56="","",'0. Plan Information'!G56) ->  | D57: =IF('0. Plan Information'!H56="","",'0. Plan Information'!H56) -> 
A58: 0 | B58: ='1. Adminstrative Timeline'!$C$12 -> , Permit No. | C58: =IF('0. Plan Information'!G57="","",'0. Plan Information'!G57) ->  | D58: =IF('0. Plan Information'!H57="","",'0. Plan Information'!H57) -> 
A59: =SUM(A53:A57) -> 0
A60: =IF(C61="",0,1) -> 0 | B60: =CONCATENATE("Enforcement Mechanism 2: ",'0. Plan Information'!D59) -> Enforcement Mechanism 2:
A61: =IF(C61="",0,1) -> 0 | B61: ='1. Adminstrative Timeline'!$C$12 -> , Permit No. | C61: =IF('0. Plan Information'!G59="","",'0. Plan Information'!G59) ->  | D61: =IF('0. Plan Information'!H59="","",'0. Plan Information'!H59) -> 
A62: =IF(C62="",0,1) -> 0 | B62: ='1. Adminstrative Timeline'!$C$12 -> , Permit No. | C62: =IF('0. Plan Information'!G60="","",'0. Plan Information'!G60) ->  | D62: =IF('0. Plan Information'!H60="","",'0. Plan Information'!H60) -> 
A63: 0 | B63: ='1. Adminstrative Timeline'!$C$12 -> , Permit No. | C63: =IF('0. Plan Information'!G61="","",'0. Plan Information'!G61) ->  | D63: =IF('0. Plan Information'!H61="","",'0. Plan Information'!H61) -> 
A64: 0 | B64: ='1. Adminstrative Timeline'!$C$12 -> , Permit No. | C64: =IF('0. Plan Information'!G62="","",'0. Plan Information'!G62) ->  | D64: =IF('0. Plan Information'!H62="","",'0. Plan Information'!H62) -> 
A65: =IF(C65="",0,1) -> 0 | B65: ='1. Adminstrative Timeline'!$C$12 -> , Permit No. | C65: =IF('0. Plan Information'!G63="","",'0. Plan Information'!G63) ->  | D65: =IF('0. Plan Information'!H63="","",'0. Plan Information'!H63) -> 
A66: =SUM(A60:A64) -> 0
A67: =IF(C68="",0,1) -> 0 | B67: =CONCATENATE("Enforcement Mechanism 3: ",'0. Plan Information'!D65) -> Enforcement Mechanism 3:
A68: =IF(C68="",0,1) -> 0 | B68: ='1. Adminstrative Timeline'!$C$12 -> , Permit No. | C68: =IF('0. Plan Information'!G65="","",'0. Plan Information'!G65) ->  | D68: =IF('0. Plan Information'!H65="","",'0. Plan Information'!H65) -> 
A69: =IF(C69="",0,1) -> 0 | B69: ='1. Adminstrative Timeline'!$C$12 -> , Permit No. | C69: =IF('0. Plan Information'!G66="","",'0. Plan Information'!G66) ->  | D69: =IF('0. Plan Information'!H66="","",'0. Plan Information'!H66) -> 
A70: 0 | B70: ='1. Adminstrative Timeline'!$C$12 -> , Permit No. | C70: =IF('0. Plan Information'!G67="","",'0. Plan Information'!G67) ->  | D70: =IF('0. Plan Information'!H67="","",'0. Plan Information'!H67) -> 
A71: 0 | B71: ='1. Adminstrative Timeline'!$C$12 -> , Permit No. | C71: =IF('0. Plan Information'!G68="","",'0. Plan Information'!G68) ->  | D71: =IF('0. Plan Information'!H68="","",'0. Plan Information'!H68) -> 
A72: 0 | B72: ='1. Adminstrative Timeline'!$C$12 -> , Permit No. | C72: =IF('0. Plan Information'!G69="","",'0. Plan Information'!G69) ->  | D72: =IF('0. Plan Information'!H69="","",'0. Plan Information'!H69) -> 
A73: =SUM(A67:A71) -> 0
B74: Water Quality Objectives
B75: Question | E75: Answer & Notes
B76: How were alternatives evaluated?
B77: How were alternatives prioritized?
B78: Do model outputs demonstrate that the selected alternative will achieve the same or better water quality outcomes?
B79: Will the plan's selected alternative achieve additional environmental or human health benefits that would not be realized though existing, required projects only?
B80: [Placeholder: Include any questions specific to your permitting authority here]
B81: Non-CWA Outcomes
B82: Question | E82: Answer & Notes
B83: Does the proposed alternative incorporate green infrastructure?
B84: Does the proposed alternative improve infrastructure resiliency?
B85: Does the proposed alternative address environmental justice concerns?
B86: Does the proposed alternative protect drinking water source waters?
B87: Are other non-CWA outcomes predicted by the proposed alternative?
B88: Financial Outcomes
B89: Question | E89: Answer & Notes
B90: Will the alternative be cheaper?
B91: Will the alternative require that rates be increased more slowly over time?
B92: [Placeholder: Include any questions specific to your permitting authority here]

Sheet 6. Evaluation Summary
B1: Instructions: Review the plan completeness summary along with the proposed integrated plan outcome. Once determined, input the final state decision and relevant notes for recordkeeping purposes. Each compliance requirement does not have to have an independent decision; if needed, put "N/A".
B3: Basic Plan Information
B4: Permittee Name | E4: =IF(ISBLANK('0. Plan Information'!$D$4),"",'0. Plan Information'!$D$4) -> 
B5: Plan Name | E5: =IF(ISBLANK('0. Plan Information'!$D$4),"",'0. Plan Information'!$D$5) -> 
B6: Integrated Plan Completeness Summary
B7: Element 1: Describing Requirements and Drivers | E7: =IF('4. Plan Completeness Summary'!C6="All required elements have been addressed.","All required elements have been addressed.",IF('4. Plan Completeness Summary'!D6="Yes","Some elements were originally found to be lacking, but have since been fully resolved.",'4. Plan Completeness Summary'!C6)) -> 
B8: Element 2: Characterizing Systems | E8: =IF('4. Plan Completeness Summary'!C7="All required elements have been addressed.","All required elements have been addressed.",IF('4. Plan Completeness Summary'!D7="Yes","Some elements were originally found to be lacking, but have since been fully resolved.",'4. Plan Completeness Summary'!C7)) -> 
B9: Element 3: Engaging Stakeholders | E9: =IF('4. Plan Completeness Summary'!C8="All required elements have been addressed.","All required elements have been addressed.",IF('4. Plan Completeness Summary'!D8="Yes","Some elements were originally found to be lacking, but have since been fully resolved.",'4. Plan Completeness Summary'!C8)) -> 
B10: Element 4: Developing and Selecting Alternatives | E10: =IF('4. Plan Completeness Summary'!C9="All required elements have been addressed.","All required elements have been addressed.",IF('4. Plan Completeness Summary'!D9="Yes","Some elements were originally found to be lacking, but have since been fully resolved.",'4. Plan Completeness Summary'!C9)) -> 
B11: Element 5: Measuring Performance | E11: =IF('4. Plan Completeness Summary'!C10="All required elements have been addressed.","All required elements have been addressed.",IF('4. Plan Completeness Summary'!D10="Yes","Some elements were originally found to be lacking, but have since been fully resolved.",'4. Plan Completeness Summary'!C10)) -> 
B12: Element 6: Adapting for Success | E12: =IF('4. Plan Completeness Summary'!C11="All required elements have been addressed.","All required elements have been addressed.",IF('4. Plan Completeness Summary'!D11="Yes","Some elements were originally found to be lacking, but have since been fully resolved.",'4. Plan Completeness Summary'!C11)) -> 
B13: Original Permit Compliance Requirements | E13: Proposed Integrated Plan Outcome
B14: Original Compliance Requirement | D14: Original Compliance Deadline | E14: Proposed Plan Outcome | F14: Proposed Compliance Deadline | G14: Permittee Justification for Adjustment | H14: State Decision and Notes
A16: ='5. Adequacy Summary'!A7 -> 0 | B16: ='5. Adequacy Summary'!B7 -> , Permit No.
A17: ='5. Adequacy Summary'!A8 -> 0 | B17: ='1. Adminstrative Timeline'!$C$12 -> , Permit No. | C17: =IF(ISBLANK('5. Adequacy Summary'!C8),"",'5. Adequacy Summary'!C8) ->  | D17: =IF(ISBLANK('5. Adequacy Summary'!D8),"",'5. Adequacy Summary'!D8) ->  | E17: =IF(ISBLANK('5. Adequacy Summary'!E8),"",'5. Adequacy Summary'!E8) ->  | F17: =IF(ISBLANK('5. Adequacy Summary'!F8),"",'5. Adequacy Summary'!F8) ->  | G17: =IF(ISBLANK('5. Adequacy Summary'!G8),"",'5. Adequacy Summary'!G8) -> 
A18: ='5. Adequacy Summary'!A9 -> 0 | B18: ='1. Adminstrative Timeline'!$C$12 -> , Permit No. | C18: =IF(ISBLANK('5. Adequacy Summary'!C9),"",'5. Adequacy Summary'!C9) ->  | D18: =IF(ISBLANK('5. Adequacy Summary'!D9),"",'5. Adequacy Summary'!D9) ->  | E18: =IF(ISBLANK('5. Adequacy Summary'!E9),"",'5. Adequacy Summary'!E9) ->  | F18: =IF(ISBLANK('5. Adequacy Summary'!F9),"",'5. Adequacy Summary'!F9) ->  | G18: =IF(ISBLANK('5. Adequacy Summary'!G9),"",'5. Adequacy Summary'!G9) -> 
A19: ='5. Adequacy Summary'!A10 -> 0 | B19: ='1. Adminstrative Timeline'!$C$12 -> , Permit No. | C19: =IF(ISBLANK('5. Adequacy Summary'!C10),"",'5. Adequacy Summary'!C10) ->  | D19: =IF(ISBLANK('5. Adequacy Summary'!D10),"",'5. Adequacy Summary'!D10) ->  | E19: =IF(ISBLANK('5. Adequacy Summary'!E10),"",'5. Adequacy Summary'!E10) ->  | F19: =IF(ISBLANK('5. Adequacy Summary'!F10),"",'5. Adequacy Summary'!F10) ->  | G19: =IF(ISBLANK('5. Adequacy Summary'!G10),"",'5. Adequacy Summary'!G10) -> 
A20: ='5. Adequacy Summary'!A11 -> 0 | B20: ='1. Adminstrative Timeline'!$C$12 -> , Permit No. | C20: =IF(ISBLANK('5. Adequacy Summary'!C11),"",'5. Adequacy Summary'!C11) ->  | D20: =IF(ISBLANK('5. Adequacy Summary'!D11),"",'5. Adequacy Summary'!D11) ->  | E20: =IF(ISBLANK('5. Adequacy Summary'!E11),"",'5. Adequacy Summary'!E11) ->  | F20: =IF(ISBLANK('5. Adequacy Summary'!F11),"",'5. Adequacy Summary'!F11) ->  | G20: =IF(ISBLANK('5. Adequacy Summary'!G11),"",'5. Adequacy Summary'!G11) -> 
A21: ='5. Adequacy Summary'!A12 -> 0 | B21: ='1. Adminstrative Timeline'!$C$12 -> , Permit No. | C21: =IF(ISBLANK('5. Adequacy Summary'!C12),"",'5. Adequacy Summary'!C12) ->  | D21: =IF(ISBLANK('5. Adequacy Summary'!D12),"",'5. Adequacy Summary'!D12) ->  | E21: =IF(ISBLANK('5. Adequacy Summary'!E12),"",'5. Adequacy Summary'!E12) ->  | F21: =IF(ISBLANK('5. Adequacy Summary'!F12),"",'5. Adequacy Summary'!F12) ->  | G21: =IF(ISBLANK('5. Adequacy Summary'!G12),"",'5. Adequacy Summary'!G12) -> 
A22: ='5. Adequacy Summary'!A13 -> 0
A23: ='5. Adequacy Summary'!A14 -> 0 | B23: ='5. Adequacy Summary'!B14 -> , Permit No.
A24: ='5. Adequacy Summary'!A15 -> 0 | B24: ='1. Adminstrative Timeline'!$C$12 -> , Permit No. | C24: =IF(ISBLANK('5. Adequacy Summary'!C15),"",'5. Adequacy Summary'!C15) ->  | D24: =IF(ISBLANK('5. Adequacy Summary'!D15),"",'5. Adequacy Summary'!D15) ->  | E24: =IF(ISBLANK('5. Adequacy Summary'!E15),"",'5. Adequacy Summary'!E15) ->  | F24: =IF(ISBLANK('5. Adequacy Summary'!F15),"",'5. Adequacy Summary'!F15) ->  | G24: =IF(ISBLANK('5. Adequacy Summary'!G15),"",'5. Adequacy Summary'!G15) -> 
A25: ='5. Adequacy Summary'!A16 -> 0 | B25: ='1. Adminstrative Timeline'!$C$12 -> , Permit No. | C25: =IF(ISBLANK('5. Adequacy Summary'!C16),"",'5. Adequacy Summary'!C16) ->  | D25: =IF(ISBLANK('5. Adequacy Summary'!D16),"",'5. Adequacy Summary'!D16) ->  | E25: =IF(ISBLANK('5. Adequacy Summary'!E16),"",'5. Adequacy Summary'!E16) ->  | F25: =IF(ISBLANK('5. Adequacy Summary'!F16),"",'5. Adequacy Summary'!F16) ->  | G25: =IF(ISBLANK('5. Adequacy Summary'!G16),"",'5. Adequacy Summary'!G16) -> 
A26: ='5. Adequacy Summary'!A17 -> 0 | B26: ='1. Adminstrative Timeline'!$C$12 -> , Permit No. | C26: =IF(ISBLANK('5. Adequacy Summary'!C17),"",'5. Adequacy Summary'!C17) ->  | D26: =IF(ISBLANK('5. Adequacy Summary'!D17),"",'5. Adequacy Summary'!D17) ->  | E26: =IF(ISBLANK('5. Adequacy Summary'!E17),"",'5. Adequacy Summary'!E17) ->  | F26: =IF(ISBLANK('5. Adequacy Summary'!F17),"",'5. Adequacy Summary'!F17) ->  | G26: =IF(ISBLANK('5. Adequacy Summary'!G17),"",'5. Adequacy Summary'!G17) -> 
A27: ='5. Adequacy Summary'!A18 -> 0 | B27: ='1. Adminstrative Timeline'!$C$12 -> , Permit No. | C27: =IF(ISBLANK('5. Adequacy Summary'!C18),"",'5. Adequacy Summary'!C18) ->  | D27: =IF(ISBLANK('5. Adequacy Summary'!D18),"",'5. Adequacy Summary'!D18) ->  | E27: =IF(ISBLANK('5. Adequacy Summary'!E18),"",'5. Adequacy Summary'!E18) ->  | F27: =IF(ISBLANK('5. Adequacy Summary'!F18),"",'5. Adequacy Summary'!F18) ->  | G27: =IF(ISBLANK('5. Adequacy Summary'!G18),"",'5. Adequacy Summary'!G18) -> 
A28: ='5. Adequacy Summary'!A19 -> 0 | B28: ='1. Adminstrative Timeline'!$C$12 -> , Permit No. | C28: =IF(ISBLANK('5. Adequacy Summary'!C19),"",'5. Adequacy Summary'!C19) ->  | D28: =IF(ISBLANK('5. Adequacy Summary'!D19),"",'5. Adequacy Summary'!D19) ->  | E28: =IF(ISBLANK('5. Adequacy Summary'!E19),"",'5. Adequacy Summary'!E19) ->  | F28: =IF(ISBLANK('5. Adequacy Summary'!F19),"",'5. Adequacy Summary'!F19) ->  | G28: =IF(ISBLANK('5. Adequacy Summary'!G19),"",'5. Adequacy Summary'!G19) -> 
A29: ='5. Adequacy Summary'!A20 -> 0
A30: ='5. Adequacy Summary'!A21 -> 0 | B30: ='5. Adequacy Summary'!B21 -> , Permit No.
A31: ='5. Adequacy Summary'!A22 -> 0 | B31: ='1. Adminstrative Timeline'!$C$12 -> , Permit No. | C31: =IF(ISBLANK('5. Adequacy Summary'!C22),"",'5. Adequacy Summary'!C22) ->  | D31: =IF(ISBLANK('5. Adequacy Summary'!D22),"",'5. Adequacy Summary'!D22) ->  | E31: =IF(ISBLANK('5. Adequacy Summary'!E22),"",'5. Adequacy Summary'!E22) ->  | F31: =IF(ISBLANK('5. Adequacy Summary'!F22),"",'5. Adequacy Summary'!F22) ->  | G31: =IF(ISBLANK('5. Adequacy Summary'!G22),"",'5. Adequacy Summary'!G22) -> 
A32: ='5. Adequacy Summary'!A23 -> 0 | B32: ='1. Adminstrative Timeline'!$C$12 -> , Permit No. | C32: =IF(ISBLANK('5. Adequacy Summary'!C23),"",'5. Adequacy Summary'!C23) ->  | D32: =IF(ISBLANK('5. Adequacy Summary'!D23),"",'5. Adequacy Summary'!D23) ->  | E32: =IF(ISBLANK('5. Adequacy Summary'!E23),"",'5. Adequacy Summary'!E23) ->  | F32: =IF(ISBLANK('5. Adequacy Summary'!F23),"",'5. Adequacy Summary'!F23) ->  | G32: =IF(ISBLANK('5. Adequacy Summary'!G23),"",'5. Adequacy Summary'!G23) -> 
A33: ='5. Adequacy Summary'!A24 -> 0 | B33: ='1. Adminstrative Timeline'!$C$12 -> , Permit No. | C33: =IF(ISBLANK('5. Adequacy Summary'!C24),"",'5. Adequacy Summary'!C24) ->  | D33: =IF(ISBLANK('5. Adequacy Summary'!D24),"",'5. Adequacy Summary'!D24) ->  | E33: =IF(ISBLANK('5. Adequacy Summary'!E24),"",'5. Adequacy Summary'!E24) ->  | F33: =IF(ISBLANK('5. Adequacy Summary'!F24),"",'5. Adequacy Summary'!F24) ->  | G33: =IF(ISBLANK('5. Adequacy Summary'!G24),"",'5. Adequacy Summary'!G24) -> 
A34: ='5. Adequacy Summary'!A25 -> 0 | B34: ='1. Adminstrative Timeline'!$C$12 -> , Permit No. | C34: =IF(ISBLANK('5. Adequacy Summary'!C25),"",'5. Adequacy Summary'!C25) ->  | D34: =IF(ISBLANK('5. Adequacy Summary'!D25),"",'5. Adequacy Summary'!D25) ->  | E34: =IF(ISBLANK('5. Adequacy Summary'!E25),"",'5. Adequacy Summary'!E25) ->  | F34: =IF(ISBLANK('5. Adequacy Summary'!F25),"",'5. Adequacy Summary'!F25) ->  | G34: =IF(ISBLANK('5. Adequacy Summary'!G25),"",'5. Adequacy Summary'!G25) -> 
A35: ='5. Adequacy Summary'!A26 -> 0 | B35: ='1. Adminstrative Timeline'!$C$12 -> , Permit No. | C35: =IF(ISBLANK('5. Adequacy Summary'!C26),"",'5. Adequacy Summary'!C26) ->  | D35: =IF(ISBLANK('5. Adequacy Summary'!D26),"",'5. Adequacy Summary'!D26) ->  | E35: =IF(ISBLANK('5. Adequacy Summary'!E26),"",'5. Adequacy Summary'!E26) ->  | F35: =IF(ISBLANK('5. Adequacy Summary'!F26),"",'5. Adequacy Summary'!F26) ->  | G35: =IF(ISBLANK('5. Adequacy Summary'!G26),"",'5. Adequacy Summary'!G26) -> 
A36: ='5. Adequacy Summary'!A27 -> 0
A37: ='5. Adequacy Summary'!A28 -> 0 | B37: ='5. Adequacy Summary'!B28 -> , Permit No.
A38: ='5. Adequacy Summary'!A29 -> 0 | B38: ='1. Adminstrative Timeline'!$C$12 -> , Permit No. | C38: =IF(ISBLANK('5. Adequacy Summary'!C29),"",'5. Adequacy Summary'!C29) ->  | D38: =IF(ISBLANK('5. Adequacy Summary'!D29),"",'5. Adequacy Summary'!D29) ->  | E38: =IF(ISBLANK('5. Adequacy Summary'!E29),"",'5. Adequacy Summary'!E29) ->  | F38: =IF(ISBLANK('5. Adequacy Summary'!F29),"",'5. Adequacy Summary'!F29) ->  | G38: =IF(ISBLANK('5. Adequacy Summary'!G29),"",'5. Adequacy Summary'!G29) -> 
A39: ='5. Adequacy Summary'!A30 -> 0 | B39: ='1. Adminstrative Timeline'!$C$12 -> , Permit No. | C39: =IF(ISBLANK('5. Adequacy Summary'!C30),"",'5. Adequacy Summary'!C30) ->  | D39: =IF(ISBLANK('5. Adequacy Summary'!D30),"",'5. Adequacy Summary'!D30) ->  | E39: =IF(ISBLANK('5. Adequacy Summary'!E30),"",'5. Adequacy Summary'!E30) ->  | F39: =IF(ISBLANK('5. Adequacy Summary'!F30),"",'5. Adequacy Summary'!F30) ->  | G39: =IF(ISBLANK('5. Adequacy Summary'!G30),"",'5. Adequacy Summary'!G30) -> 
A40: ='5. Adequacy Summary'!A31 -> 0 | B40: ='1. Adminstrative Timeline'!$C$12 -> , Permit No. | C40: =IF(ISBLANK('5. Adequacy Summary'!C31),"",'5. Adequacy Summary'!C31) ->  | D40: =IF(ISBLANK('5. Adequacy Summary'!D31),"",'5. Adequacy Summary'!D31) ->  | E40: =IF(ISBLANK('5. Adequacy Summary'!E31),"",'5. Adequacy Summary'!E31) ->  | F40: =IF(ISBLANK('5. Adequacy Summary'!F31),"",'5. Adequacy Summary'!F31) ->  | G40: =IF(ISBLANK('5. Adequacy Summary'!G31),"",'5. Adequacy Summary'!G31) -> 
A41: ='5. Adequacy Summary'!A32 -> 0 | B41: ='1. Adminstrative Timeline'!$C$12 -> , Permit No. | C41: =IF(ISBLANK('5. Adequacy Summary'!C32),"",'5. Adequacy Summary'!C32) ->  | D41: =IF(ISBLANK('5. Adequacy Summary'!D32),"",'5. Adequacy Summary'!D32) ->  | E41: =IF(ISBLANK('5. Adequacy Summary'!E32),"",'5. Adequacy Summary'!E32) ->  | F41: =IF(ISBLANK('5. Adequacy Summary'!F32),"",'5. Adequacy Summary'!F32) ->  | G41: =IF(ISBLANK('5. Adequacy Summary'!G32),"",'5. Adequacy Summary'!G32) -> 
A42: ='5. Adequacy Summary'!A33 -> 0 | B42: ='1. Adminstrative Timeline'!$C$12 -> , Permit No. | C42: =IF(ISBLANK('5. Adequacy Summary'!C33),"",'5. Adequacy Summary'!C33) ->  | D42: =IF(ISBLANK('5. Adequacy Summary'!D33),"",'5. Adequacy Summary'!D33) ->  | E42: =IF(ISBLANK('5. Adequacy Summary'!E33),"",'5. Adequacy Summary'!E33) ->  | F42: =IF(ISBLANK('5. Adequacy Summary'!F33),"",'5. Adequacy Summary'!F33) ->  | G42: =IF(ISBLANK('5. Adequacy Summary'!G33),"",'5. Adequacy Summary'!G33) -> 
A43: ='5. Adequacy Summary'!A34 -> 0
A44: ='5. Adequacy Summary'!A35 -> 0 | B44: ='5. Adequacy Summary'!B35 -> , Permit No.
A45: ='5. Adequacy Summary'!A36 -> 0 | B45: ='1. Adminstrative Timeline'!$C$12 -> , Permit No. | C45: =IF(ISBLANK('5. Adequacy Summary'!C36),"",'5. Adequacy Summary'!C36) ->  | D45: =IF(ISBLANK('5. Adequacy Summary'!D36),"",'5. Adequacy Summary'!D36) ->  | E45: =IF(ISBLANK('5. Adequacy Summary'!E36),"",'5. Adequacy Summary'!E36) ->  | F45: =IF(ISBLANK('5. Adequacy Summary'!F36),"",'5. Adequacy Summary'!F36) ->  | G45: =IF(ISBLANK('5. Adequacy Summary'!G36),"",'5. Adequacy Summary'!G36) -> 
A46: ='5. Adequacy Summary'!A37 -> 0 | B46: ='1. Adminstrative Timeline'!$C$12 -> , Permit No. | C46: =IF(ISBLANK('5. Adequacy Summary'!C37),"",'5. Adequacy Summary'!C37) ->  | D46: =IF(ISBLANK('5. Adequacy Summary'!D37),"",'5. Adequacy Summary'!D37) ->  | E46: =IF(ISBLANK('5. Adequacy Summary'!E37),"",'5. Adequacy Summary'!E37) ->  | F46: =IF(ISBLANK('5. Adequacy Summary'!F37),"",'5. Adequacy Summary'!F37) ->  | G46: =IF(ISBLANK('5. Adequacy Summary'!G37),"",'5. Adequacy Summary'!G37) -> 
A47: ='5. Adequacy Summary'!A38 -> 0 | B47: ='1. Adminstrative Timeline'!$C$12 -> , Permit No. | C47: =IF(ISBLANK('5. Adequacy Summary'!C38),"",'5. Adequacy Summary'!C38) ->  | D47: =IF(ISBLANK('5. Adequacy Summary'!D38),"",'5. Adequacy Summary'!D38) ->  | E47: =IF(ISBLANK('5. Adequacy Summary'!E38),"",'5. Adequacy Summary'!E38) ->  | F47: =IF(ISBLANK('5. Adequacy Summary'!F38),"",'5. Adequacy Summary'!F38) ->  | G47: =IF(ISBLANK('5. Adequacy Summary'!G38),"",'5. Adequacy Summary'!G38) -> 
A48: ='5. Adequacy Summary'!A39 -> 0 | B48: ='1. Adminstrative Timeline'!$C$12 -> , Permit No. | C48: =IF(ISBLANK('5. Adequacy Summary'!C39),"",'5. Adequacy Summary'!C39) ->  | D48: =IF(ISBLANK('5. Adequacy Summary'!D39),"",'5. Adequacy Summary'!D39) ->  | E48: =IF(ISBLANK('5. Adequacy Summary'!E39),"",'5. Adequacy Summary'!E39) ->  | F48: =IF(ISBLANK('5. Adequacy Summary'!F39),"",'5. Adequacy Summary'!F39) ->  | G48: =IF(ISBLANK('5. Adequacy Summary'!G39),"",'5. Adequacy Summary'!G39) -> 
A49: ='5. Adequacy Summary'!A40 -> 0 | B49: ='1. Adminstrative Timeline'!$C$12 -> , Permit No. | C49: =IF(ISBLANK('5. Adequacy Summary'!C40),"",'5. Adequacy Summary'!C40) ->  | D49: =IF(ISBLANK('5. Adequacy Summary'!D40),"",'5. Adequacy Summary'!D40) ->  | E49: =IF(ISBLANK('5. Adequacy Summary'!E40),"",'5. Adequacy Summary'!E40) ->  | F49: =IF(ISBLANK('5. Adequacy Summary'!F40),"",'5. Adequacy Summary'!F40) ->  | G49: =IF(ISBLANK('5. Adequacy Summary'!G40),"",'5. Adequacy Summary'!G40) -> 
A50: ='5. Adequacy Summary'!A41 -> 0
A51: ='5. Adequacy Summary'!A42 -> 0 | B51: ='5. Adequacy Summary'!B42 -> , Permit No.
A52: ='5. Adequacy Summary'!A43 -> 0 | B52: ='1. Adminstrative Timeline'!$C$12 -> , Permit No. | C52: =IF(ISBLANK('5. Adequacy Summary'!C43),"",'5. Adequacy Summary'!C43) ->  | D52: =IF(ISBLANK('5. Adequacy Summary'!D43),"",'5. Adequacy Summary'!D43) ->  | E52: =IF(ISBLANK('5. Adequacy Summary'!E43),"",'5. Adequacy Summary'!E43) ->  | F52: =IF(ISBLANK('5. Adequacy Summary'!F43),"",'5. Adequacy Summary'!F43) ->  | G52: =IF(ISBLANK('5. Adequacy Summary'!G43),"",'5. Adequacy Summary'!G43) -> 
A53: ='5. Adequacy Summary'!A44 -> 0 | B53: ='1. Adminstrative Timeline'!$C$12 -> , Permit No. | C53: =IF(ISBLANK('5. Adequacy Summary'!C44),"",'5. Adequacy Summary'!C44) ->  | D53: =IF(ISBLANK('5. Adequacy Summary'!D44),"",'5. Adequacy Summary'!D44) ->  | E53: =IF(ISBLANK('5. Adequacy Summary'!E44),"",'5. Adequacy Summary'!E44) ->  | F53: =IF(ISBLANK('5. Adequacy Summary'!F44),"",'5. Adequacy Summary'!F44) ->  | G53: =IF(ISBLANK('5. Adequacy Summary'!G44),"",'5. Adequacy Summary'!G44) -> 
A54: ='5. Adequacy Summary'!A45 -> 0 | B54: ='1. Adminstrative Timeline'!$C$12 -> , Permit No. | C54: =IF(ISBLANK('5. Adequacy Summary'!C45),"",'5. Adequacy Summary'!C45) ->  | D54: =IF(ISBLANK('5. Adequacy Summary'!D45),"",'5. Adequacy Summary'!D45) ->  | E54: =IF(ISBLANK('5. Adequacy Summary'!E45),"",'5. Adequacy Summary'!E45) ->  | F54: =IF(ISBLANK('5. Adequacy Summary'!F45),"",'5. Adequacy Summary'!F45) ->  | G54: =IF(ISBLANK('5. Adequacy Summary'!G45),"",'5. Adequacy Summary'!G45) -> 
A55: ='5. Adequacy Summary'!A46 -> 0 | B55: ='1. Adminstrative Timeline'!$C$12 -> , Permit No. | C55: =IF(ISBLANK('5. Adequacy Summary'!C46),"",'5. Adequacy Summary'!C46) ->  | D55: =IF(ISBLANK('5. Adequacy Summary'!D46),"",'5. Adequacy Summary'!D46) ->  | E55: =IF(ISBLANK('5. Adequacy Summary'!E46),"",'5. Adequacy Summary'!E46) ->  | F55: =IF(ISBLANK('5. Adequacy Summary'!F46),"",'5. Adequacy Summary'!F46) ->  | G55: =IF(ISBLANK('5. Adequacy Summary'!G46),"",'5. Adequacy Summary'!G46) -> 
A56: ='5. Adequacy Summary'!A47 -> 0 | B56: ='1. Adminstrative Timeline'!$C$12 -> , Permit No. | C56: =IF(ISBLANK('5. Adequacy Summary'!C47),"",'5. Adequacy Summary'!C47) ->  | D56: =IF(ISBLANK('5. Adequacy Summary'!D47),"",'5. Adequacy Summary'!D47) ->  | E56: =IF(ISBLANK('5. Adequacy Summary'!E47),"",'5. Adequacy Summary'!E47) ->  | F56: =IF(ISBLANK('5. Adequacy Summary'!F47),"",'5. Adequacy Summary'!F47) ->  | G56: =IF(ISBLANK('5. Adequacy Summary'!G47),"",'5. Adequacy Summary'!G47) -> 
A57: ='5. Adequacy Summary'!A48 -> 0
B58: Original Enforcement Compliance Requirements | E58: Proposed Integrated Plan Outcome
B59: Original Compliance Requirement | D59: Original Compliance Deadline | E59: Proposed Plan Outcome | F59: Proposed Compliance Deadline | G59: Permittee Justification for Adjustment | H59: State Decision and Notes
A61: ='5. Adequacy Summary'!A53 -> 0 | B61: ='5. Adequacy Summary'!B53 -> Enforcement Mechanism 1:
A62: ='5. Adequacy Summary'!A54 -> 0 | B62: ='1. Adminstrative Timeline'!$C$12 -> , Permit No. | C62: =IF(ISBLANK('5. Adequacy Summary'!C54),"",'5. Adequacy Summary'!C54) ->  | D62: =IF(ISBLANK('5. Adequacy Summary'!D54),"",'5. Adequacy Summary'!D54) ->  | E62: =IF(ISBLANK('5. Adequacy Summary'!E54),"",'5. Adequacy Summary'!E54) ->  | F62: =IF(ISBLANK('5. Adequacy Summary'!G54),"",'5. Adequacy Summary'!G54) ->  | G62: =IF(ISBLANK('5. Adequacy Summary'!H54),"",'5. Adequacy Summary'!H54) -> 
A63: ='5. Adequacy Summary'!A55 -> 0 | B63: ='1. Adminstrative Timeline'!$C$12 -> , Permit No. | C63: =IF(ISBLANK('5. Adequacy Summary'!C55),"",'5. Adequacy Summary'!C55) ->  | D63: =IF(ISBLANK('5. Adequacy Summary'!D55),"",'5. Adequacy Summary'!D55) ->  | E63: =IF(ISBLANK('5. Adequacy Summary'!E55),"",'5. Adequacy Summary'!E55) ->  | F63: =IF(ISBLANK('5. Adequacy Summary'!G55),"",'5. Adequacy Summary'!G55) ->  | G63: =IF(ISBLANK('5. Adequacy Summary'!H55),"",'5. Adequacy Summary'!H55) -> 
A64: ='5. Adequacy Summary'!A56 -> 0 | B64: ='1. Adminstrative Timeline'!$C$12 -> , Permit No. | C64: =IF(ISBLANK('5. Adequacy Summary'!C56),"",'5. Adequacy Summary'!C56) ->  | D64: =IF(ISBLANK('5. Adequacy Summary'!D56),"",'5. Adequacy Summary'!D56) ->  | E64: =IF(ISBLANK('5. Adequacy Summary'!E56),"",'5. Adequacy Summary'!E56) ->  | F64: =IF(ISBLANK('5. Adequacy Summary'!G56),"",'5. Adequacy Summary'!G56) ->  | G64: =IF(ISBLANK('5. Adequacy Summary'!H56),"",'5. Adequacy Summary'!H56) -> 
A65: ='5. Adequacy Summary'!A57 -> 0 | B65: ='1. Adminstrative Timeline'!$C$12 -> , Permit No. | C65: =IF(ISBLANK('5. Adequacy Summary'!C57),"",'5. Adequacy Summary'!C57) ->  | D65: =IF(ISBLANK('5. Adequacy Summary'!D57),"",'5. Adequacy Summary'!D57) ->  | E65: =IF(ISBLANK('5. Adequacy Summary'!E57),"",'5. Adequacy Summary'!E57) ->  | F65: =IF(ISBLANK('5. Adequacy Summary'!G57),"",'5. Adequacy Summary'!G57) ->  | G65: =IF(ISBLANK('5. Adequacy Summary'!H57),"",'5. Adequacy Summary'!H57) -> 
A66: ='5. Adequacy Summary'!A58 -> 0 | B66: ='1. Adminstrative Timeline'!$C$12 -> , Permit No. | C66: =IF(ISBLANK('5. Adequacy Summary'!C58),"",'5. Adequacy Summary'!C58) ->  | D66: =IF(ISBLANK('5. Adequacy Summary'!D58),"",'5. Adequacy Summary'!D58) ->  | E66: =IF(ISBLANK('5. Adequacy Summary'!E58),"",'5. Adequacy Summary'!E58) ->  | F66: =IF(ISBLANK('5. Adequacy Summary'!G58),"",'5. Adequacy Summary'!G58) ->  | G66: =IF(ISBLANK('5. Adequacy Summary'!H58),"",'5. Adequacy Summary'!H58) -> 
A67: ='5. Adequacy Summary'!A59 -> 0
A68: ='5. Adequacy Summary'!A60 -> 0 | B68: ='5. Adequacy Summary'!B60 -> Enforcement Mechanism 2:
A69: ='5. Adequacy Summary'!A61 -> 0 | B69: ='1. Adminstrative Timeline'!$C$12 -> , Permit No. | C69: =IF(ISBLANK('5. Adequacy Summary'!C61),"",'5. Adequacy Summary'!C61) ->  | D69: =IF(ISBLANK('5. Adequacy Summary'!D61),"",'5. Adequacy Summary'!D61) ->  | E69: =IF(ISBLANK('5. Adequacy Summary'!E61),"",'5. Adequacy Summary'!E61) ->  | F69: =IF(ISBLANK('5. Adequacy Summary'!G61),"",'5. Adequacy Summary'!G61) ->  | G69: =IF(ISBLANK('5. Adequacy Summary'!H61),"",'5. Adequacy Summary'!H61) -> 
A70: ='5. Adequacy Summary'!A62 -> 0 | B70: ='1. Adminstrative Timeline'!$C$12 -> , Permit No. | C70: =IF(ISBLANK('5. Adequacy Summary'!C62),"",'5. Adequacy Summary'!C62) ->  | D70: =IF(ISBLANK('5. Adequacy Summary'!D62),"",'5. Adequacy Summary'!D62) ->  | E70: =IF(ISBLANK('5. Adequacy Summary'!E62),"",'5. Adequacy Summary'!E62) ->  | F70: =IF(ISBLANK('5. Adequacy Summary'!G62),"",'5. Adequacy Summary'!G62) ->  | G70: =IF(ISBLANK('5. Adequacy Summary'!H62),"",'5. Adequacy Summary'!H62) -> 
A71: ='5. Adequacy Summary'!A63 -> 0 | B71: ='1. Adminstrative Timeline'!$C$12 -> , Permit No. | C71: =IF(ISBLANK('5. Adequacy Summary'!C63),"",'5. Adequacy Summary'!C63) ->  | D71: =IF(ISBLANK('5. Adequacy Summary'!D63),"",'5. Adequacy Summary'!D63) ->  | E71: =IF(ISBLANK('5. Adequacy Summary'!E63),"",'5. Adequacy Summary'!E63) ->  | F71: =IF(ISBLANK('5. Adequacy Summary'!G63),"",'5. Adequacy Summary'!G63) ->  | G71: =IF(ISBLANK('5. Adequacy Summary'!H63),"",'5. Adequacy Summary'!H63) -> 
A72: ='5. Adequacy Summary'!A64 -> 0 | B72: ='1. Adminstrative Timeline'!$C$12 -> , Permit No. | C72: =IF(ISBLANK('5. Adequacy Summary'!C64),"",'5. Adequacy Summary'!C64) ->  | D72: =IF(ISBLANK('5. Adequacy Summary'!D64),"",'5. Adequacy Summary'!D64) ->  | E72: =IF(ISBLANK('5. Adequacy Summary'!E64),"",'5. Adequacy Summary'!E64) ->  | F72: =IF(ISBLANK('5. Adequacy Summary'!G64),"",'5. Adequacy Summary'!G64) ->  | G72: =IF(ISBLANK('5. Adequacy Summary'!H64),"",'5. Adequacy Summary'!H64) -> 
A73: ='5. Adequacy Summary'!A65 -> 0 | B73: ='1. Adminstrative Timeline'!$C$12 -> , Permit No. | C73: =IF(ISBLANK('5. Adequacy Summary'!C65),"",'5. Adequacy Summary'!C65) ->  | D73: =IF(ISBLANK('5. Adequacy Summary'!D65),"",'5. Adequacy Summary'!D65) ->  | E73: =IF(ISBLANK('5. Adequacy Summary'!E65),"",'5. Adequacy Summary'!E65) ->  | F73: =IF(ISBLANK('5. Adequacy Summary'!G65),"",'5. Adequacy Summary'!G65) ->  | G73: =IF(ISBLANK('5. Adequacy Summary'!H65),"",'5. Adequacy Summary'!H65) -> 
A74: ='5. Adequacy Summary'!A66 -> 0
A75: ='5. Adequacy Summary'!A67 -> 0 | B75: ='5. Adequacy Summary'!B67 -> Enforcement Mechanism 3:
A76: ='5. Adequacy Summary'!A68 -> 0 | B76: ='1. Adminstrative Timeline'!$C$12 -> , Permit No. | C76: =IF(ISBLANK('5. Adequacy Summary'!C68),"",'5. Adequacy Summary'!C68) ->  | D76: =IF(ISBLANK('5. Adequacy Summary'!D68),"",'5. Adequacy Summary'!D68) ->  | E76: =IF(ISBLANK('5. Adequacy Summary'!E68),"",'5. Adequacy Summary'!E68) ->  | F76: =IF(ISBLANK('5. Adequacy Summary'!G68),"",'5. Adequacy Summary'!G68) ->  | G76: =IF(ISBLANK('5. Adequacy Summary'!H68),"",'5. Adequacy Summary'!H68) -> 
A77: ='5. Adequacy Summary'!A69 -> 0 | B77: ='1. Adminstrative Timeline'!$C$12 -> , Permit No. | C77: =IF(ISBLANK('5. Adequacy Summary'!C69),"",'5. Adequacy Summary'!C69) ->  | D77: =IF(ISBLANK('5. Adequacy Summary'!D69),"",'5. Adequacy Summary'!D69) ->  | E77: =IF(ISBLANK('5. Adequacy Summary'!E69),"",'5. Adequacy Summary'!E69) ->  | F77: =IF(ISBLANK('5. Adequacy Summary'!G69),"",'5. Adequacy Summary'!G69) ->  | G77: =IF(ISBLANK('5. Adequacy Summary'!H69),"",'5. Adequacy Summary'!H69) -> 
A78: ='5. Adequacy Summary'!A70 -> 0 | B78: ='1. Adminstrative Timeline'!$C$12 -> , Permit No. | C78: =IF(ISBLANK('5. Adequacy Summary'!C70),"",'5. Adequacy Summary'!C70) ->  | D78: =IF(ISBLANK('5. Adequacy Summary'!D70),"",'5. Adequacy Summary'!D70) ->  | E78: =IF(ISBLANK('5. Adequacy Summary'!E70),"",'5. Adequacy Summary'!E70) ->  | F78: =IF(ISBLANK('5. Adequacy Summary'!G70),"",'5. Adequacy Summary'!G70) ->  | G78: =IF(ISBLANK('5. Adequacy Summary'!H70),"",'5. Adequacy Summary'!H70) -> 
A79: ='5. Adequacy Summary'!A71 -> 0 | B79: ='1. Adminstrative Timeline'!$C$12 -> , Permit No. | C79: =IF(ISBLANK('5. Adequacy Summary'!C71),"",'5. Adequacy Summary'!C71) ->  | D79: =IF(ISBLANK('5. Adequacy Summary'!D71),"",'5. Adequacy Summary'!D71) ->  | E79: =IF(ISBLANK('5. Adequacy Summary'!E71),"",'5. Adequacy Summary'!E71) ->  | F79: =IF(ISBLANK('5. Adequacy Summary'!G71),"",'5. Adequacy Summary'!G71) ->  | G79: =IF(ISBLANK('5. Adequacy Summary'!H71),"",'5. Adequacy Summary'!H71) -> 
A80: ='5. Adequacy Summary'!A72 -> 0 | B80: ='1. Adminstrative Timeline'!$C$12 -> , Permit No. | C80: =IF(ISBLANK('5. Adequacy Summary'!C72),"",'5. Adequacy Summary'!C72) ->  | D80: =IF(ISBLANK('5. Adequacy Summary'!D72),"",'5. Adequacy Summary'!D72) ->  | E80: =IF(ISBLANK('5. Adequacy Summary'!E72),"",'5. Adequacy Summary'!E72) ->  | F80: =IF(ISBLANK('5. Adequacy Summary'!G72),"",'5. Adequacy Summary'!G72) ->  | G80: =IF(ISBLANK('5. Adequacy Summary'!H72),"",'5. Adequacy Summary'!H72) -> 
A81: ='5. Adequacy Summary'!A73 -> 0
